Department Family,Entity,Date,Expense Type,Expense Area,Supplier,Transaction Number,AP Amount,Description,Supplier Postcode
Department of Health,NHS Sheffield CCG,2/29/2020,C&M-PMS Contract Value,PRC DELEGATED CO-COMMISSIONING,ABBEY LANE SURGERY,30986661,"24,322.24",PRC DELEGATED CO-COMMISSIONING,S8 0BJ
Department of Health,NHS Sheffield CCG,2/29/2020,C&M-PMS DES Learn Dsblty Hlth Chk,PRC DELEGATED CO-COMMISSIONING,ABBEY LANE SURGERY,30986661,140.00,PRC DELEGATED CO-COMMISSIONING,S8 0BJ
Department of Health,NHS Sheffield CCG,2/29/2020,C&M-PMS Out of Hours Opt Outs,PRC DELEGATED CO-COMMISSIONING,ABBEY LANE SURGERY,30986661,23.10,PRC DELEGATED CO-COMMISSIONING,S8 0BJ
Department of Health,NHS Sheffield CCG,2/29/2020,C&M-PMS PCN DES Participation,PRC DELEGATED CO-COMMISSIONING,ABBEY LANE SURGERY,30986661,452.23,PRC DELEGATED CO-COMMISSIONING,S8 0BJ
Department of Health,NHS Sheffield CCG,2/29/2020,C&M-PMS Prem Notional Rent,PRC DELEGATED CO-COMMISSIONING,ABBEY LANE SURGERY,30986661,"2,122.92",PRC DELEGATED CO-COMMISSIONING,S8 0BJ
Department of Health,NHS Sheffield CCG,2/29/2020,C&M-PMS Prem Rates,PRC DELEGATED CO-COMMISSIONING,ABBEY LANE SURGERY,30986661,761.00,PRC DELEGATED CO-COMMISSIONING,S8 0BJ
Department of Health,NHS Sheffield CCG,2/29/2020,C&M-PMS QOF Aspiration,PRC DELEGATED CO-COMMISSIONING,ABBEY LANE SURGERY,30986661,"2,636.98",PRC DELEGATED CO-COMMISSIONING,S8 0BJ
Department of Health,NHS Sheffield CCG,2/29/2020,Cont Care-Physical Disab (65+),CHC ADULT FULLY FUNDED,ABBEYCARE NURSING,30899215,"53,446.17",CHC ADULT FULLY FUNDED,S35 9YY
Department of Health,NHS Sheffield CCG,2/29/2020,Cont Care-Physical Disab (65+),CHC ADULT FULLY FUNDED,ABBEYCARE NURSING,31110576,"49,998.03",CHC ADULT FULLY FUNDED,S35 9YY
Department of Health,NHS Sheffield CCG,2/29/2020,Cont Care-Physical Disab (65+),CHC ADULT FULLY FUNDED,CHC RETRO,31023734,"49,658.39",CHC ADULT FULLY FUNDED,DE4 5JE
Department of Health,NHS Sheffield CCG,2/29/2020,C&M-PMS Contract Value,PRC DELEGATED CO-COMMISSIONING,AVENUE MEDICAL CENTRE SHEFFIELD,30986659,"55,216.47",PRC DELEGATED CO-COMMISSIONING,S8 7FH
Department of Health,NHS Sheffield CCG,2/29/2020,C&M-PMS Out of Hours Opt Outs,PRC DELEGATED CO-COMMISSIONING,AVENUE MEDICAL CENTRE SHEFFIELD,30986659,57.28,PRC DELEGATED CO-COMMISSIONING,S8 7FH
Department of Health,NHS Sheffield CCG,2/29/2020,C&M-PMS PCN DES Participation,PRC DELEGATED CO-COMMISSIONING,AVENUE MEDICAL CENTRE SHEFFIELD,30986659,"1,058.32",PRC DELEGATED CO-COMMISSIONING,S8 7FH
Department of Health,NHS Sheffield CCG,2/29/2020,C&M-PMS Prem Notional Rent,PRC DELEGATED CO-COMMISSIONING,AVENUE MEDICAL CENTRE SHEFFIELD,30986659,"5,546.67",PRC DELEGATED CO-COMMISSIONING,S8 7FH
Department of Health,NHS Sheffield CCG,2/29/2020,C&M-PMS QOF Aspiration,PRC DELEGATED CO-COMMISSIONING,AVENUE MEDICAL CENTRE SHEFFIELD,30986659,"5,847.72",PRC DELEGATED CO-COMMISSIONING,S8 7FH
Department of Health,NHS Sheffield CCG,2/29/2020,Hcare Srv Rec Fdtn Trust-Contract Baseline,ACUTE COMMISSIONING,BARNSLEY HOSPITAL NHS FOUNDATION TRUST,30899442,"86,710.00",ACUTE COMMISSIONING,S75 2EP
Department of Health,NHS Sheffield CCG,2/29/2020,C&M-PMS Contract Value,PRC DELEGATED CO-COMMISSIONING,BARNSLEY ROAD SURGERY,30986663,"21,707.99",PRC DELEGATED CO-COMMISSIONING,S5 0QJ
Department of Health,NHS Sheffield CCG,2/29/2020,C&M-PMS PCN DES Participation,PRC DELEGATED CO-COMMISSIONING,BARNSLEY ROAD SURGERY,30986663,410.63,PRC DELEGATED CO-COMMISSIONING,S5 0QJ
Department of Health,NHS Sheffield CCG,2/29/2020,C&M-PMS Prem Notional Rent,PRC DELEGATED CO-COMMISSIONING,BARNSLEY ROAD SURGERY,30986663,"2,652.17",PRC DELEGATED CO-COMMISSIONING,S5 0QJ
Department of Health,NHS Sheffield CCG,2/29/2020,C&M-PMS QOF Aspiration,PRC DELEGATED CO-COMMISSIONING,BARNSLEY ROAD SURGERY,30986663,"2,377.21",PRC DELEGATED CO-COMMISSIONING,S5 0QJ
Department of Health,NHS Sheffield CCG,2/29/2020,C&M-GMS DES Minor Surgery,PRC DELEGATED CO-COMMISSIONING,BASLOW ROAD & SHOREHAM STREET SURGERIES,31201440,"3,165.00",PRC DELEGATED CO-COMMISSIONING,S17 4DR
Department of Health,NHS Sheffield CCG,2/29/2020,C&M-GMS Global Sum,PRC DELEGATED CO-COMMISSIONING,BASLOW ROAD & SHOREHAM STREET SURGERIES,31201440,"96,589.28",PRC DELEGATED CO-COMMISSIONING,S17 4DR
Department of Health,NHS Sheffield CCG,2/29/2020,C&M-GMS MPIG Correction Factor,PRC DELEGATED CO-COMMISSIONING,BASLOW ROAD & SHOREHAM STREET SURGERIES,31201440,146.21,PRC DELEGATED CO-COMMISSIONING,S17 4DR
Department of Health,NHS Sheffield CCG,2/29/2020,C&M-GMS PCN DES Participation,PRC DELEGATED CO-COMMISSIONING,BASLOW ROAD & SHOREHAM STREET SURGERIES,31201440,"2,012.54",PRC DELEGATED CO-COMMISSIONING,S17 4DR
Department of Health,NHS Sheffield CCG,2/29/2020,C&M-GMS Prem Notional Rent,PRC DELEGATED CO-COMMISSIONING,BASLOW ROAD & SHOREHAM STREET SURGERIES,31201440,"8,222.71",PRC DELEGATED CO-COMMISSIONING,S17 4DR
Department of Health,NHS Sheffield CCG,2/29/2020,C&M-GMS QOF Aspiration,PRC DELEGATED CO-COMMISSIONING,BASLOW ROAD & SHOREHAM STREET SURGERIES,31201440,"10,278.96",PRC DELEGATED CO-COMMISSIONING,S17 4DR
Department of Health,NHS Sheffield CCG,2/29/2020,Cont Care-Physical Disab (65+),CHC ADULT FULLY FUNDED,BC SHEFFIELD LTD,31037775,"36,955.43",CHC ADULT FULLY FUNDED,S9 2TJ
Department of Health,NHS Sheffield CCG,2/29/2020,C&M-PMS Contract Value,PRC DELEGATED CO-COMMISSIONING,BIRLEY HEALTH CENTRE,30986665,"64,386.85",PRC DELEGATED CO-COMMISSIONING,S12 3BP
Department of Health,NHS Sheffield CCG,2/29/2020,C&M-PMS DES Learn Dsblty Hlth Chk,PRC DELEGATED CO-COMMISSIONING,BIRLEY HEALTH CENTRE,30986665,980.00,PRC DELEGATED CO-COMMISSIONING,S12 3BP
Department of Health,NHS Sheffield CCG,2/29/2020,C&M-PMS Out of Hours Opt Outs,PRC DELEGATED CO-COMMISSIONING,BIRLEY HEALTH CENTRE,30986665,17.70,PRC DELEGATED CO-COMMISSIONING,S12 3BP
Department of Health,NHS Sheffield CCG,2/29/2020,C&M-PMS PCN DES Participation,PRC DELEGATED CO-COMMISSIONING,BIRLEY HEALTH CENTRE,30986665,"1,209.32",PRC DELEGATED CO-COMMISSIONING,S12 3BP
Department of Health,NHS Sheffield CCG,2/29/2020,C&M-PMS Prem Notional Rent,PRC DELEGATED CO-COMMISSIONING,BIRLEY HEALTH CENTRE,30986665,"7,600.58",PRC DELEGATED CO-COMMISSIONING,S12 3BP
Department of Health,NHS Sheffield CCG,2/29/2020,C&M-PMS QOF Aspiration,PRC DELEGATED CO-COMMISSIONING,BIRLEY HEALTH CENTRE,30986665,"7,981.39",PRC DELEGATED CO-COMMISSIONING,S12 3BP
Department of Health,NHS Sheffield CCG,2/29/2020,Clinical&Medical-Independent Sector,ACUTE COMMISSIONING,BMI HEALTHCARE LTD,31000456,"59,155.50",https://nww.einvoice-prod.sbs.nhs.uk:8179/invoicepdf/0440e4fd-6c62-59d6-a746-e0a9f3043401,SK3 0XN
Department of Health,NHS Sheffield CCG,2/29/2020,Cont Care-Funded Nursing Care Allow,FUNDED NURSING CARE,BONDCARE,31037530,"34,791.20",FUNDED NURSING CARE,NW4 4EF
Department of Health,NHS Sheffield CCG,2/29/2020,Cont Care-Physical Disab (<65),CHC ADULT FULLY FUNDED,BONDCARE,31037714,"31,932.21",CHC ADULT FULLY FUNDED,NW4 4EF
Department of Health,NHS Sheffield CCG,2/29/2020,C&M-GMS Cost of Drugs -Prescribing,LOCAL ENHANCED SERVICES,BROOMHILL SURGERY,31201447,"5,089.66",LOCAL ENHANCED SERVICES,S10 5BU
Department of Health,NHS Sheffield CCG,2/29/2020,C&M-GMS DES Learn Dsblty Hlth Chk,PRC DELEGATED CO-COMMISSIONING,BROOMHILL SURGERY,31201447,280.00,PRC DELEGATED CO-COMMISSIONING,S10 5BU
Department of Health,NHS Sheffield CCG,2/29/2020,C&M-GMS DES Minor Surgery,PRC DELEGATED CO-COMMISSIONING,BROOMHILL SURGERY,31201447,320.00,PRC DELEGATED CO-COMMISSIONING,S10 5BU
Department of Health,NHS Sheffield CCG,2/29/2020,C&M-GMS Global Sum,PRC DELEGATED CO-COMMISSIONING,BROOMHILL SURGERY,31201447,"64,851.54",PRC DELEGATED CO-COMMISSIONING,S10 5BU
Department of Health,NHS Sheffield CCG,2/29/2020,C&M-GMS MPIG Correction Factor,PRC DELEGATED CO-COMMISSIONING,BROOMHILL SURGERY,31201447,251.00,PRC DELEGATED CO-COMMISSIONING,S10 5BU
Department of Health,NHS Sheffield CCG,2/29/2020,C&M-GMS PCN DES Participation,PRC DELEGATED CO-COMMISSIONING,BROOMHILL SURGERY,31201447,"1,318.50",PRC DELEGATED CO-COMMISSIONING,S10 5BU
Department of Health,NHS Sheffield CCG,2/29/2020,C&M-GMS Prem Cost Rent,PRC DELEGATED CO-COMMISSIONING,BROOMHILL SURGERY,31201447,"2,975.42",PRC DELEGATED CO-COMMISSIONING,S10 5BU
Department of Health,NHS Sheffield CCG,2/29/2020,C&M-GMS Prem Notional Rent,PRC DELEGATED CO-COMMISSIONING,BROOMHILL SURGERY,31201447,"2,612.50",PRC DELEGATED CO-COMMISSIONING,S10 5BU
Department of Health,NHS Sheffield CCG,2/29/2020,C&M-GMS Prof Fees Prescribing,PRC DELEGATED CO-COMMISSIONING,BROOMHILL SURGERY,31201447,519.33,PRC DELEGATED CO-COMMISSIONING,S10 5BU
Department of Health,NHS Sheffield CCG,2/29/2020,C&M-GMS QOF Aspiration,PRC DELEGATED CO-COMMISSIONING,BROOMHILL SURGERY,31201447,"6,211.39",PRC DELEGATED CO-COMMISSIONING,S10 5BU
Department of Health,NHS Sheffield CCG,2/29/2020,legal fees,CONTINUING HEALTHCARE ASSESSMENT & SUPPORT,BROWNE JACOBSON LLP,30940445,"5,562.00",https://nww.einvoice-prod.sbs.nhs.uk:8179/invoicepdf/c4b31e1f-742c-5996-a9be-1bc57753cbff,NG2 1BJ
Department of Health,NHS Sheffield CCG,2/29/2020,legal fees,SAFEGUARDING,BROWNE JACOBSON LLP,30940445,"22,933.64",SAFEGUARDING,NG2 1BJ
Department of Health,NHS Sheffield CCG,2/29/2020,C&M-GMS IT Comm Servs -GP Practices,PRIMARY CARE IT,BT GLOBAL SERVICES,31245215,"25,248.96",PRIMARY CARE IT,RH10 9JY
Department of Health,NHS Sheffield CCG,2/29/2020,C&M-GMS Cost of Drugs -Prescribing,LOCAL ENHANCED SERVICES,BUCHANAN ROAD SURGERY,31201443,27.70,LOCAL ENHANCED SERVICES,S5 8AL
Department of Health,NHS Sheffield CCG,2/29/2020,C&M-GMS DES Minor Surgery,PRC DELEGATED CO-COMMISSIONING,BUCHANAN ROAD SURGERY,31201443,200.00,PRC DELEGATED CO-COMMISSIONING,S5 8AL
Department of Health,NHS Sheffield CCG,2/29/2020,C&M-GMS Global Sum,PRC DELEGATED CO-COMMISSIONING,BUCHANAN ROAD SURGERY,31201443,"35,728.03",PRC DELEGATED CO-COMMISSIONING,S5 8AL
Department of Health,NHS Sheffield CCG,2/29/2020,C&M-GMS MPIG Correction Factor,PRC DELEGATED CO-COMMISSIONING,BUCHANAN ROAD SURGERY,31201443,655.25,PRC DELEGATED CO-COMMISSIONING,S5 8AL
Department of Health,NHS Sheffield CCG,2/29/2020,C&M-GMS PCN DES Participation,PRC DELEGATED CO-COMMISSIONING,BUCHANAN ROAD SURGERY,31201443,736.41,PRC DELEGATED CO-COMMISSIONING,S5 8AL
Department of Health,NHS Sheffield CCG,2/29/2020,C&M-GMS Prem Notional Rent,PRC DELEGATED CO-COMMISSIONING,BUCHANAN ROAD SURGERY,31201443,"2,595.83",PRC DELEGATED CO-COMMISSIONING,S5 8AL
Department of Health,NHS Sheffield CCG,2/29/2020,C&M-GMS Prof Fees Prescribing,PRC DELEGATED CO-COMMISSIONING,BUCHANAN ROAD SURGERY,31201443,10.35,PRC DELEGATED CO-COMMISSIONING,S5 8AL
Department of Health,NHS Sheffield CCG,2/29/2020,C&M-GMS QOF Aspiration,PRC DELEGATED CO-COMMISSIONING,BUCHANAN ROAD SURGERY,31201443,"4,303.24",PRC DELEGATED CO-COMMISSIONING,S5 8AL
Department of Health,NHS Sheffield CCG,2/29/2020,C&M-PMS Contract Value,PRC DELEGATED CO-COMMISSIONING,BURNCROSS SURGERY,30986667,"121,307.81",PRC DELEGATED CO-COMMISSIONING,S35 1RN
Department of Health,NHS Sheffield CCG,2/29/2020,C&M-PMS DES Learn Dsblty Hlth Chk,PRC DELEGATED CO-COMMISSIONING,BURNCROSS SURGERY,30986667,"2,100.00",PRC DELEGATED CO-COMMISSIONING,S35 1RN
Department of Health,NHS Sheffield CCG,2/29/2020,C&M-PMS PCN DES Participation,PRC DELEGATED CO-COMMISSIONING,BURNCROSS SURGERY,30986667,"2,292.15",PRC DELEGATED CO-COMMISSIONING,S35 1RN
Department of Health,NHS Sheffield CCG,2/29/2020,C&M-PMS Prem Notional Rent,PRC DELEGATED CO-COMMISSIONING,BURNCROSS SURGERY,30986667,"14,058.33",PRC DELEGATED CO-COMMISSIONING,S35 1RN
Department of Health,NHS Sheffield CCG,2/29/2020,C&M-PMS QOF Aspiration,PRC DELEGATED CO-COMMISSIONING,BURNCROSS SURGERY,30986667,"15,732.40",PRC DELEGATED CO-COMMISSIONING,S35 1RN
Department of Health,NHS Sheffield CCG,2/29/2020,C&M-PMS Contract Value,PRC DELEGATED CO-COMMISSIONING,BURNGREAVE SURGERY,30986669,"57,513.21",PRC DELEGATED CO-COMMISSIONING,S3 9DA
Department of Health,NHS Sheffield CCG,2/29/2020,C&M-PMS Out of Hours Opt Outs,PRC DELEGATED CO-COMMISSIONING,BURNGREAVE SURGERY,30986669,6.70,PRC DELEGATED CO-COMMISSIONING,S3 9DA
Department of Health,NHS Sheffield CCG,2/29/2020,C&M-PMS PCN DES Participation,PRC DELEGATED CO-COMMISSIONING,BURNGREAVE SURGERY,30986669,"1,088.98",PRC DELEGATED CO-COMMISSIONING,S3 9DA
Department of Health,NHS Sheffield CCG,2/29/2020,C&M-PMS Prem Notional Rent,PRC DELEGATED CO-COMMISSIONING,BURNGREAVE SURGERY,30986669,"6,622.92",PRC DELEGATED CO-COMMISSIONING,S3 9DA
Department of Health,NHS Sheffield CCG,2/29/2020,C&M-PMS QOF Aspiration,PRC DELEGATED CO-COMMISSIONING,BURNGREAVE SURGERY,30986669,"5,288.96",PRC DELEGATED CO-COMMISSIONING,S3 9DA
Department of Health,NHS Sheffield CCG,2/29/2020,External Consultancy Fees,CLINICAL LEADS,CAJA LTD,31133486,"24,850.00",Cancer Alliance - Nudge Behavioural support,ST5 5NB
Department of Health,NHS Sheffield CCG,2/29/2020,C&M-GMS Cost of Drugs -Prescribing,LOCAL ENHANCED SERVICES,CARTERKNOWLE & DORE MEDICAL PRACTICE,31201452,"4,326.96",LOCAL ENHANCED SERVICES,S7 2DW
Department of Health,NHS Sheffield CCG,2/29/2020,C&M-GMS DES Learn Dsblty Hlth Chk,PRC DELEGATED CO-COMMISSIONING,CARTERKNOWLE & DORE MEDICAL PRACTICE,31201452,840.00,PRC DELEGATED CO-COMMISSIONING,S7 2DW
Department of Health,NHS Sheffield CCG,2/29/2020,C&M-GMS DES Minor Surgery,PRC DELEGATED CO-COMMISSIONING,CARTERKNOWLE & DORE MEDICAL PRACTICE,31201452,"2,210.00",PRC DELEGATED CO-COMMISSIONING,S7 2DW
Department of Health,NHS Sheffield CCG,2/29/2020,C&M-GMS Global Sum,PRC DELEGATED CO-COMMISSIONING,CARTERKNOWLE & DORE MEDICAL PRACTICE,31201452,"85,153.70",PRC DELEGATED CO-COMMISSIONING,S7 2DW
Department of Health,NHS Sheffield CCG,2/29/2020,C&M-GMS MPIG Correction Factor,PRC DELEGATED CO-COMMISSIONING,CARTERKNOWLE & DORE MEDICAL PRACTICE,31201452,747.29,PRC DELEGATED CO-COMMISSIONING,S7 2DW
Department of Health,NHS Sheffield CCG,2/29/2020,C&M-GMS PCN DES Participation,PRC DELEGATED CO-COMMISSIONING,CARTERKNOWLE & DORE MEDICAL PRACTICE,31201452,"1,742.96",PRC DELEGATED CO-COMMISSIONING,S7 2DW
Department of Health,NHS Sheffield CCG,2/29/2020,C&M-GMS Prem Notional Rent,PRC DELEGATED CO-COMMISSIONING,CARTERKNOWLE & DORE MEDICAL PRACTICE,31201452,"7,596.50",PRC DELEGATED CO-COMMISSIONING,S7 2DW
Department of Health,NHS Sheffield CCG,2/29/2020,C&M-GMS Prof Fees Prescribing,PRC DELEGATED CO-COMMISSIONING,CARTERKNOWLE & DORE MEDICAL PRACTICE,31201452,360.02,PRC DELEGATED CO-COMMISSIONING,S7 2DW
Department of Health,NHS Sheffield CCG,2/29/2020,C&M-GMS QOF Aspiration,PRC DELEGATED CO-COMMISSIONING,CARTERKNOWLE & DORE MEDICAL PRACTICE,31201452,"10,055.02",PRC DELEGATED CO-COMMISSIONING,S7 2DW
Department of Health,NHS Sheffield CCG,2/29/2020,C&M-GMS Cost of Drugs -Prescribing,LOCAL ENHANCED SERVICES,CHARNOCK HEALTH PRIMARY CARE CENTRE,31201449,"2,024.90",LOCAL ENHANCED SERVICES,S12 3GH
Department of Health,NHS Sheffield CCG,2/29/2020,C&M-GMS DES Learn Dsblty Hlth Chk,PRC DELEGATED CO-COMMISSIONING,CHARNOCK HEALTH PRIMARY CARE CENTRE,31201449,280.00,PRC DELEGATED CO-COMMISSIONING,S12 3GH
Department of Health,NHS Sheffield CCG,2/29/2020,C&M-GMS DES Minor Surgery,PRC DELEGATED CO-COMMISSIONING,CHARNOCK HEALTH PRIMARY CARE CENTRE,31201449,"2,120.00",PRC DELEGATED CO-COMMISSIONING,S12 3GH
Department of Health,NHS Sheffield CCG,2/29/2020,C&M-GMS Global Sum,PRC DELEGATED CO-COMMISSIONING,CHARNOCK HEALTH PRIMARY CARE CENTRE,31201449,"43,474.71",PRC DELEGATED CO-COMMISSIONING,S12 3GH
Department of Health,NHS Sheffield CCG,2/29/2020,C&M-GMS MPIG Correction Factor,PRC DELEGATED CO-COMMISSIONING,CHARNOCK HEALTH PRIMARY CARE CENTRE,31201449,206.62,PRC DELEGATED CO-COMMISSIONING,S12 3GH
Department of Health,NHS Sheffield CCG,2/29/2020,C&M-GMS PCN DES Participation,PRC DELEGATED CO-COMMISSIONING,CHARNOCK HEALTH PRIMARY CARE CENTRE,31201449,869.33,PRC DELEGATED CO-COMMISSIONING,S12 3GH
Department of Health,NHS Sheffield CCG,2/29/2020,C&M-GMS Prem Notional Rent,PRC DELEGATED CO-COMMISSIONING,CHARNOCK HEALTH PRIMARY CARE CENTRE,31201449,335.00,PRC DELEGATED CO-COMMISSIONING,S12 3GH
Department of Health,NHS Sheffield CCG,2/29/2020,C&M-GMS Prem Water Rates,PRC DELEGATED CO-COMMISSIONING,CHARNOCK HEALTH PRIMARY CARE CENTRE,31201449,124.61,PRC DELEGATED CO-COMMISSIONING,S12 3GH
Department of Health,NHS Sheffield CCG,2/29/2020,C&M-GMS Prof Fees Prescribing,PRC DELEGATED CO-COMMISSIONING,CHARNOCK HEALTH PRIMARY CARE CENTRE,31201449,295.86,PRC DELEGATED CO-COMMISSIONING,S12 3GH
Department of Health,NHS Sheffield CCG,2/29/2020,C&M-GMS QOF Aspiration,PRC DELEGATED CO-COMMISSIONING,CHARNOCK HEALTH PRIMARY CARE CENTRE,31201449,"4,932.79",PRC DELEGATED CO-COMMISSIONING,S12 3GH
Department of Health,NHS Sheffield CCG,2/29/2020,Hcare Srv Rec Fdtn Trust-Contract Baseline,ACUTE COMMISSIONING,CHESTERFIELD ROYAL HOSPITAL NHS FOUNDATION TRUST,30899141,"45,843.00",ACUTE COMMISSIONING,S44 5BL
Department of Health,NHS Sheffield CCG,2/29/2020,Hcare Srv Rec Fdtn Trust-Contract Baseline,ACUTE COMMISSIONING,CHESTERFIELD ROYAL HOSPITAL NHS FOUNDATION TRUST,30899507,"58,865.00",ACUTE COMMISSIONING,S44 5BL
Department of Health,NHS Sheffield CCG,2/29/2020,Hcare Srv Rec Fdtn Trust-Contract Baseline,ACUTE COMMISSIONING,CHESTERFIELD ROYAL HOSPITAL NHS FOUNDATION TRUST,31149716,"318,586.00",ACUTE COMMISSIONING,S44 5BL
Department of Health,NHS Sheffield CCG,2/29/2020,Clinical&Medical-Independent Sector,ACUTE COMMISSIONING,CLAREMONT HOSPITAL,31110595,"66,095.00",ACUTE COMMISSIONING,S10 5UB
Department of Health,NHS Sheffield CCG,2/29/2020,C&M-APMS Contract Value,PRC DELEGATED CO-COMMISSIONING,CLOVER CITY PRACTICE,30986737,"29,768.54",PRC DELEGATED CO-COMMISSIONING,S9 4QH
Department of Health,NHS Sheffield CCG,2/29/2020,C&M-APMS PCN DES Participation,PRC DELEGATED CO-COMMISSIONING,CLOVER CITY PRACTICE,30986737,529.90,PRC DELEGATED CO-COMMISSIONING,S9 4QH
Department of Health,NHS Sheffield CCG,2/29/2020,C&M-PMS QOF Aspiration,PRC DELEGATED CO-COMMISSIONING,CLOVER CITY PRACTICE,30986737,"1,537.57",PRC DELEGATED CO-COMMISSIONING,S9 4QH
Department of Health,NHS Sheffield CCG,2/29/2020,C&M-APMS Contract Value,PRC DELEGATED CO-COMMISSIONING,CLOVER GROUP PRACTICE,30986671,"128,095.85",PRC DELEGATED CO-COMMISSIONING,S9 4QH
Department of Health,NHS Sheffield CCG,2/29/2020,C&M-APMS OOH Opt Outs,PRC DELEGATED CO-COMMISSIONING,CLOVER GROUP PRACTICE,30986671,44.80,PRC DELEGATED CO-COMMISSIONING,S9 4QH
Department of Health,NHS Sheffield CCG,2/29/2020,C&M-APMS PCN DES Participation,PRC DELEGATED CO-COMMISSIONING,CLOVER GROUP PRACTICE,30986671,"2,421.56",PRC DELEGATED CO-COMMISSIONING,S9 4QH
Department of Health,NHS Sheffield CCG,2/29/2020,C&M-APMS Prem Actual Rent,PRC DELEGATED CO-COMMISSIONING,CLOVER GROUP PRACTICE,30986671,"7,973.85",PRC DELEGATED CO-COMMISSIONING,S9 4QH
Department of Health,NHS Sheffield CCG,2/29/2020,C&M-APMS Prem Healthcentre Rent,PRC DELEGATED CO-COMMISSIONING,CLOVER GROUP PRACTICE,30986671,"59,658.86",PRC DELEGATED CO-COMMISSIONING,S9 4QH
Department of Health,NHS Sheffield CCG,2/29/2020,C&M-APMS Prem Notional Rent,PRC DELEGATED CO-COMMISSIONING,CLOVER GROUP PRACTICE,30986671,"2,804.17",PRC DELEGATED CO-COMMISSIONING,S9 4QH
Department of Health,NHS Sheffield CCG,2/29/2020,C&M-PMS DES Learn Dsblty Hlth Chk,PRC DELEGATED CO-COMMISSIONING,CLOVER GROUP PRACTICE,30986671,140.00,PRC DELEGATED CO-COMMISSIONING,S9 4QH
Department of Health,NHS Sheffield CCG,2/29/2020,C&M-PMS QOF Aspiration,PRC DELEGATED CO-COMMISSIONING,CLOVER GROUP PRACTICE,30986671,"11,480.20",PRC DELEGATED CO-COMMISSIONING,S9 4QH
Department of Health,NHS Sheffield CCG,2/29/2020,Voids and Subsidies,PRC DELEGATED CO-COMMISSIONING,COMMUNITY HEALTH PARTNERSHIPS LTD,30899197,"37,050.51",https://nww.einvoice-prod.sbs.nhs.uk:8179/invoicepdf/a384ed6b-7435-55c5-b62f-3a5d5c6db553,M1 5AN
Department of Health,NHS Sheffield CCG,2/29/2020,Voids and Subsidies,RECHARGES NHS PROPERTY SERVICES LTD,COMMUNITY HEALTH PARTNERSHIPS LTD,30899197,"125,768.90",RECHARGES NHS PROPERTY SERVICES LTD,M1 5AN
Department of Health,NHS Sheffield CCG,2/29/2020,C&M-GMS Cost of Drugs -Prescribing,LOCAL ENHANCED SERVICES,CROOKES PRACTICE,31201457,"2,004.36",LOCAL ENHANCED SERVICES,S10 1GN
Department of Health,NHS Sheffield CCG,2/29/2020,C&M-GMS DES Learn Dsblty Hlth Chk,PRC DELEGATED CO-COMMISSIONING,CROOKES PRACTICE,31201457,700.00,PRC DELEGATED CO-COMMISSIONING,S10 1GN
Department of Health,NHS Sheffield CCG,2/29/2020,C&M-GMS Global Sum,PRC DELEGATED CO-COMMISSIONING,CROOKES PRACTICE,31201457,"52,152.17",PRC DELEGATED CO-COMMISSIONING,S10 1GN
Department of Health,NHS Sheffield CCG,2/29/2020,C&M-GMS MPIG Correction Factor,PRC DELEGATED CO-COMMISSIONING,CROOKES PRACTICE,31201457,772.96,PRC DELEGATED CO-COMMISSIONING,S10 1GN
Department of Health,NHS Sheffield CCG,2/29/2020,C&M-GMS PCN DES Participation,PRC DELEGATED CO-COMMISSIONING,CROOKES PRACTICE,31201457,"1,040.55",PRC DELEGATED CO-COMMISSIONING,S10 1GN
Department of Health,NHS Sheffield CCG,2/29/2020,C&M-GMS Prem Notional Rent,PRC DELEGATED CO-COMMISSIONING,CROOKES PRACTICE,31201457,"3,874.67",PRC DELEGATED CO-COMMISSIONING,S10 1GN
Department of Health,NHS Sheffield CCG,2/29/2020,C&M-GMS Prof Fees Prescribing,PRC DELEGATED CO-COMMISSIONING,CROOKES PRACTICE,31201457,407.60,PRC DELEGATED CO-COMMISSIONING,S10 1GN
Department of Health,NHS Sheffield CCG,2/29/2020,C&M-GMS QOF Aspiration,PRC DELEGATED CO-COMMISSIONING,CROOKES PRACTICE,31201457,"4,885.77",PRC DELEGATED CO-COMMISSIONING,S10 1GN
Department of Health,NHS Sheffield CCG,2/29/2020,C&M-PMS Contract Value,PRC DELEGATED CO-COMMISSIONING,DEEPCAR MEDICAL CENTRE,30986673,"42,322.95",PRC DELEGATED CO-COMMISSIONING,S36 2RA
Department of Health,NHS Sheffield CCG,2/29/2020,C&M-PMS DES Learn Dsblty Hlth Chk,PRC DELEGATED CO-COMMISSIONING,DEEPCAR MEDICAL CENTRE,30986673,"1,400.00",PRC DELEGATED CO-COMMISSIONING,S36 2RA
Department of Health,NHS Sheffield CCG,2/29/2020,C&M-PMS Out of Hours Opt Outs,PRC DELEGATED CO-COMMISSIONING,DEEPCAR MEDICAL CENTRE,30986673,66.61,PRC DELEGATED CO-COMMISSIONING,S36 2RA
Department of Health,NHS Sheffield CCG,2/29/2020,C&M-PMS PCN DES Participation,PRC DELEGATED CO-COMMISSIONING,DEEPCAR MEDICAL CENTRE,30986673,789.85,PRC DELEGATED CO-COMMISSIONING,S36 2RA
Department of Health,NHS Sheffield CCG,2/29/2020,C&M-PMS Prem Healthcentre Rent,PRC DELEGATED CO-COMMISSIONING,DEEPCAR MEDICAL CENTRE,30986673,"29,915.44",PRC DELEGATED CO-COMMISSIONING,S36 2RA
Department of Health,NHS Sheffield CCG,2/29/2020,C&M-PMS QOF Aspiration,PRC DELEGATED CO-COMMISSIONING,DEEPCAR MEDICAL CENTRE,30986673,"4,298.67",PRC DELEGATED CO-COMMISSIONING,S36 2RA
Department of Health,NHS Sheffield CCG,2/29/2020,C&M-GMS Cost of Drugs -Prescribing,LOCAL ENHANCED SERVICES,DEVONSHIRE GREEN MEDICAL CENTRE,31201460,"1,002.42",LOCAL ENHANCED SERVICES,S3 7SF
Department of Health,NHS Sheffield CCG,2/29/2020,C&M-GMS DES Extended Hours Access,PRC DELEGATED CO-COMMISSIONING,DEVONSHIRE GREEN MEDICAL CENTRE,31201460,"6,816.36",PRC DELEGATED CO-COMMISSIONING,S3 7SF
Department of Health,NHS Sheffield CCG,2/29/2020,C&M-GMS DES Minor Surgery,PRC DELEGATED CO-COMMISSIONING,DEVONSHIRE GREEN MEDICAL CENTRE,31201460,495.00,PRC DELEGATED CO-COMMISSIONING,S3 7SF
Department of Health,NHS Sheffield CCG,2/29/2020,C&M-GMS Global Sum,PRC DELEGATED CO-COMMISSIONING,DEVONSHIRE GREEN MEDICAL CENTRE,31201460,"46,421.81",PRC DELEGATED CO-COMMISSIONING,S3 7SF
Department of Health,NHS Sheffield CCG,2/29/2020,C&M-GMS MPIG Correction Factor,PRC DELEGATED CO-COMMISSIONING,DEVONSHIRE GREEN MEDICAL CENTRE,31201460,"1,615.60",PRC DELEGATED CO-COMMISSIONING,S3 7SF
Department of Health,NHS Sheffield CCG,2/29/2020,C&M-GMS PCN DES Clinical Director,PRC DELEGATED CO-COMMISSIONING,DEVONSHIRE GREEN MEDICAL CENTRE,31201460,"3,188.00",PRC DELEGATED CO-COMMISSIONING,S3 7SF
Department of Health,NHS Sheffield CCG,2/29/2020,C&M-GMS PCN DES PCN support,LOCAL ENHANCED SERVICES,DEVONSHIRE GREEN MEDICAL CENTRE,31201460,"6,977.63",LOCAL ENHANCED SERVICES,S3 7SF
Department of Health,NHS Sheffield CCG,2/29/2020,C&M-GMS PCN DES Participation,PRC DELEGATED CO-COMMISSIONING,DEVONSHIRE GREEN MEDICAL CENTRE,31201460,931.75,PRC DELEGATED CO-COMMISSIONING,S3 7SF
Department of Health,NHS Sheffield CCG,2/29/2020,C&M-GMS Prem Notional Rent,PRC DELEGATED CO-COMMISSIONING,DEVONSHIRE GREEN MEDICAL CENTRE,31201460,"5,987.50",PRC DELEGATED CO-COMMISSIONING,S3 7SF
Department of Health,NHS Sheffield CCG,2/29/2020,C&M-GMS Prem Water Rates,PRC DELEGATED CO-COMMISSIONING,DEVONSHIRE GREEN MEDICAL CENTRE,31201460,"19,452.49",PRC DELEGATED CO-COMMISSIONING,S3 7SF
Department of Health,NHS Sheffield CCG,2/29/2020,C&M-GMS Prof Fees Prescribing,PRC DELEGATED CO-COMMISSIONING,DEVONSHIRE GREEN MEDICAL CENTRE,31201460,184.15,PRC DELEGATED CO-COMMISSIONING,S3 7SF
Department of Health,NHS Sheffield CCG,2/29/2020,C&M-GMS QOF Aspiration,PRC DELEGATED CO-COMMISSIONING,DEVONSHIRE GREEN MEDICAL CENTRE,31201460,"4,805.68",PRC DELEGATED CO-COMMISSIONING,S3 7SF
Department of Health,NHS Sheffield CCG,2/29/2020,Hcare Srv Rec Fdtn Trust-Contract Baseline,ACUTE COMMISSIONING,DONCASTER AND BASSETLAW HOSPITALS NHS FOUNDATION TRUST,31000505,261.00,CQUINS @ 50% MONTH 11 2019/2020 CONTRACT,WF3 1WE
Department of Health,NHS Sheffield CCG,2/29/2020,Hcare Srv Rec Fdtn Trust-Contract Baseline,ACUTE COMMISSIONING,DONCASTER AND BASSETLAW HOSPITALS NHS FOUNDATION TRUST,31000505,"44,044.00",MONTH 11 2019/2020 CONTRACT,WF3 1WE
Department of Health,NHS Sheffield CCG,2/29/2020,C&M-PMS Contract Value,PRC DELEGATED CO-COMMISSIONING,DOVERCOURT SURGERY,30986675,"73,999.72",PRC DELEGATED CO-COMMISSIONING,S2 5FX
Department of Health,NHS Sheffield CCG,2/29/2020,C&M-PMS DES Learn Dsblty Hlth Chk,PRC DELEGATED CO-COMMISSIONING,DOVERCOURT SURGERY,30986675,"1,540.00",PRC DELEGATED CO-COMMISSIONING,S2 5FX
Department of Health,NHS Sheffield CCG,2/29/2020,C&M-PMS Out of Hours Opt Outs,PRC DELEGATED CO-COMMISSIONING,DOVERCOURT SURGERY,30986675,23.88,PRC DELEGATED CO-COMMISSIONING,S2 5FX
Department of Health,NHS Sheffield CCG,2/29/2020,C&M-PMS PCN DES Participation,PRC DELEGATED CO-COMMISSIONING,DOVERCOURT SURGERY,30986675,"1,392.36",PRC DELEGATED CO-COMMISSIONING,S2 5FX
Department of Health,NHS Sheffield CCG,2/29/2020,C&M-PMS Prem Actual Rent,PRC DELEGATED CO-COMMISSIONING,DOVERCOURT SURGERY,30986675,"12,400.00",PRC DELEGATED CO-COMMISSIONING,S2 5FX
Department of Health,NHS Sheffield CCG,2/29/2020,C&M-PMS Prem Notional Rent,PRC DELEGATED CO-COMMISSIONING,DOVERCOURT SURGERY,30986675,"1,708.33",PRC DELEGATED CO-COMMISSIONING,S2 5FX
Department of Health,NHS Sheffield CCG,2/29/2020,C&M-PMS QOF Aspiration,PRC DELEGATED CO-COMMISSIONING,DOVERCOURT SURGERY,30986675,"7,675.00",PRC DELEGATED CO-COMMISSIONING,S2 5FX
Department of Health,NHS Sheffield CCG,2/29/2020,C&M-PMS Contract Value,PRC DELEGATED CO-COMMISSIONING,DR MEHROTRA & PARTNER,30986677,"26,814.24",PRC DELEGATED CO-COMMISSIONING,S9 5DH
Department of Health,NHS Sheffield CCG,2/29/2020,C&M-PMS PCN DES Participation,PRC DELEGATED CO-COMMISSIONING,DR MEHROTRA & PARTNER,30986677,501.42,PRC DELEGATED CO-COMMISSIONING,S9 5DH
Department of Health,NHS Sheffield CCG,2/29/2020,C&M-PMS Prem Actual Rent,PRC DELEGATED CO-COMMISSIONING,DR MEHROTRA & PARTNER,30986677,"2,650.00",PRC DELEGATED CO-COMMISSIONING,S9 5DH
Department of Health,NHS Sheffield CCG,2/29/2020,C&M-PMS Prem Notional Rent,PRC DELEGATED CO-COMMISSIONING,DR MEHROTRA & PARTNER,30986677,"5,157.29",PRC DELEGATED CO-COMMISSIONING,S9 5DH
Department of Health,NHS Sheffield CCG,2/29/2020,C&M-PMS QOF Aspiration,PRC DELEGATED CO-COMMISSIONING,DR MEHROTRA & PARTNER,30986677,"2,763.65",PRC DELEGATED CO-COMMISSIONING,S9 5DH
Department of Health,NHS Sheffield CCG,2/29/2020,C&M-PMS Contract Value,PRC DELEGATED CO-COMMISSIONING,DR MILNER & PARTNERS,30986679,"76,636.66",PRC DELEGATED CO-COMMISSIONING,S6 4JQ
Department of Health,NHS Sheffield CCG,2/29/2020,C&M-PMS DES Learn Dsblty Hlth Chk,PRC DELEGATED CO-COMMISSIONING,DR MILNER & PARTNERS,30986679,"1,260.00",PRC DELEGATED CO-COMMISSIONING,S6 4JQ
Department of Health,NHS Sheffield CCG,2/29/2020,C&M-PMS Out of Hours Opt Outs,PRC DELEGATED CO-COMMISSIONING,DR MILNER & PARTNERS,30986679,25.55,PRC DELEGATED CO-COMMISSIONING,S6 4JQ
Department of Health,NHS Sheffield CCG,2/29/2020,C&M-PMS PCN DES Participation,PRC DELEGATED CO-COMMISSIONING,DR MILNER & PARTNERS,30986679,"1,435.93",PRC DELEGATED CO-COMMISSIONING,S6 4JQ
Department of Health,NHS Sheffield CCG,2/29/2020,C&M-PMS PCO Locum Sickness,PRC DELEGATED CO-COMMISSIONING,DR MILNER & PARTNERS,30986679,"1,396.52",PRC DELEGATED CO-COMMISSIONING,S6 4JQ
Department of Health,NHS Sheffield CCG,2/29/2020,C&M-PMS Prem Actual Rent,PRC DELEGATED CO-COMMISSIONING,DR MILNER & PARTNERS,30986679,"11,382.00",PRC DELEGATED CO-COMMISSIONING,S6 4JQ
Department of Health,NHS Sheffield CCG,2/29/2020,C&M-PMS Prem Notional Rent,PRC DELEGATED CO-COMMISSIONING,DR MILNER & PARTNERS,30986679,"4,462.42",PRC DELEGATED CO-COMMISSIONING,S6 4JQ
Department of Health,NHS Sheffield CCG,2/29/2020,C&M-PMS Prem Rates,PRC DELEGATED CO-COMMISSIONING,DR MILNER & PARTNERS,30986679,"2,593.00",PRC DELEGATED CO-COMMISSIONING,S6 4JQ
Department of Health,NHS Sheffield CCG,2/29/2020,C&M-PMS Prem Water Rates,PRC DELEGATED CO-COMMISSIONING,DR MILNER & PARTNERS,30986679,223.61,PRC DELEGATED CO-COMMISSIONING,S6 4JQ
Department of Health,NHS Sheffield CCG,2/29/2020,C&M-PMS QOF Aspiration,PRC DELEGATED CO-COMMISSIONING,DR MILNER & PARTNERS,30986679,"6,513.90",PRC DELEGATED CO-COMMISSIONING,S6 4JQ
Department of Health,NHS Sheffield CCG,2/29/2020,C&M-GMS Cost of Drugs -Prescribing,LOCAL ENHANCED SERVICES,DUKE MEDICAL CENTRE,31201467,"1,908.17",LOCAL ENHANCED SERVICES,S2 2TD
Department of Health,NHS Sheffield CCG,2/29/2020,C&M-GMS DES Minor Surgery,PRC DELEGATED CO-COMMISSIONING,DUKE MEDICAL CENTRE,31201467,600.00,PRC DELEGATED CO-COMMISSIONING,S2 2TD
Department of Health,NHS Sheffield CCG,2/29/2020,C&M-GMS Global Sum,PRC DELEGATED CO-COMMISSIONING,DUKE MEDICAL CENTRE,31201467,"59,077.01",PRC DELEGATED CO-COMMISSIONING,S2 2TD
Department of Health,NHS Sheffield CCG,2/29/2020,C&M-GMS MPIG Correction Factor,PRC DELEGATED CO-COMMISSIONING,DUKE MEDICAL CENTRE,31201467,306.25,PRC DELEGATED CO-COMMISSIONING,S2 2TD
Department of Health,NHS Sheffield CCG,2/29/2020,C&M-GMS PCN DES Participation,PRC DELEGATED CO-COMMISSIONING,DUKE MEDICAL CENTRE,31201467,"1,138.79",PRC DELEGATED CO-COMMISSIONING,S2 2TD
Department of Health,NHS Sheffield CCG,2/29/2020,C&M-GMS Prem Notional Rent,PRC DELEGATED CO-COMMISSIONING,DUKE MEDICAL CENTRE,31201467,"5,721.67",PRC DELEGATED CO-COMMISSIONING,S2 2TD
Department of Health,NHS Sheffield CCG,2/29/2020,C&M-GMS Prof Fees Prescribing,PRC DELEGATED CO-COMMISSIONING,DUKE MEDICAL CENTRE,31201467,357.94,PRC DELEGATED CO-COMMISSIONING,S2 2TD
Department of Health,NHS Sheffield CCG,2/29/2020,C&M-GMS QOF Aspiration,PRC DELEGATED CO-COMMISSIONING,DUKE MEDICAL CENTRE,31201467,"5,166.69",PRC DELEGATED CO-COMMISSIONING,S2 2TD
Department of Health,NHS Sheffield CCG,2/29/2020,C&M-PMS Contract Value,PRC DELEGATED CO-COMMISSIONING,DUNNINC ROAD SURGERY,30986681,"23,890.16",PRC DELEGATED CO-COMMISSIONING,S5 0AE
Department of Health,NHS Sheffield CCG,2/29/2020,C&M-PMS PCN DES Participation,PRC DELEGATED CO-COMMISSIONING,DUNNINC ROAD SURGERY,30986681,448.76,PRC DELEGATED CO-COMMISSIONING,S5 0AE
Department of Health,NHS Sheffield CCG,2/29/2020,C&M-PMS Prem Notional Rent,PRC DELEGATED CO-COMMISSIONING,DUNNINC ROAD SURGERY,30986681,"1,695.83",PRC DELEGATED CO-COMMISSIONING,S5 0AE
Department of Health,NHS Sheffield CCG,2/29/2020,C&M-PMS QOF Aspiration,PRC DELEGATED CO-COMMISSIONING,DUNNINC ROAD SURGERY,30986681,"2,054.91",PRC DELEGATED CO-COMMISSIONING,S5 0AE
Department of Health,NHS Sheffield CCG,2/29/2020,C&M-PMS Contract Value,PRC DELEGATED CO-COMMISSIONING,DYKES HALL MEDICAL CENTRE,30986683,"73,074.51",PRC DELEGATED CO-COMMISSIONING,S6 4GQ
Department of Health,NHS Sheffield CCG,2/29/2020,C&M-PMS DES Extended Hours Access,PRC DELEGATED CO-COMMISSIONING,DYKES HALL MEDICAL CENTRE,30986683,"4,412.49",PRC DELEGATED CO-COMMISSIONING,S6 4GQ
Department of Health,NHS Sheffield CCG,2/29/2020,C&M-PMS Out of Hours Opt Outs,PRC DELEGATED CO-COMMISSIONING,DYKES HALL MEDICAL CENTRE,30986683,123.14,PRC DELEGATED CO-COMMISSIONING,S6 4GQ
Department of Health,NHS Sheffield CCG,2/29/2020,C&M-PMS PCN DES Clinical Director,PRC DELEGATED CO-COMMISSIONING,DYKES HALL MEDICAL CENTRE,30986683,"2,063.71",PRC DELEGATED CO-COMMISSIONING,S6 4GQ
Department of Health,NHS Sheffield CCG,2/29/2020,C&M-PMS PCN DES PCN support,LOCAL ENHANCED SERVICES,DYKES HALL MEDICAL CENTRE,30986683,"4,516.88",LOCAL ENHANCED SERVICES,S6 4GQ
Department of Health,NHS Sheffield CCG,2/29/2020,C&M-PMS PCN DES Participation,PRC DELEGATED CO-COMMISSIONING,DYKES HALL MEDICAL CENTRE,30986683,"1,386.86",PRC DELEGATED CO-COMMISSIONING,S6 4GQ
Department of Health,NHS Sheffield CCG,2/29/2020,C&M-PMS Prem Notional Rent,PRC DELEGATED CO-COMMISSIONING,DYKES HALL MEDICAL CENTRE,30986683,"5,377.08",PRC DELEGATED CO-COMMISSIONING,S6 4GQ
Department of Health,NHS Sheffield CCG,2/29/2020,C&M-PMS Prem Water Rates,PRC DELEGATED CO-COMMISSIONING,DYKES HALL MEDICAL CENTRE,30986683,281.15,PRC DELEGATED CO-COMMISSIONING,S6 4GQ
Department of Health,NHS Sheffield CCG,2/29/2020,C&M-PMS QOF Aspiration,PRC DELEGATED CO-COMMISSIONING,DYKES HALL MEDICAL CENTRE,30986683,"8,323.49",PRC DELEGATED CO-COMMISSIONING,S6 4GQ
Department of Health,NHS Sheffield CCG,2/29/2020,C&M-PMS Contract Value,PRC DELEGATED CO-COMMISSIONING,EAST BANK MEDICAL CENTRE,30986685,"49,348.01",PRC DELEGATED CO-COMMISSIONING,S2 2AG
Department of Health,NHS Sheffield CCG,2/29/2020,C&M-PMS Out of Hours Opt Outs,PRC DELEGATED CO-COMMISSIONING,EAST BANK MEDICAL CENTRE,30986685,22.40,PRC DELEGATED CO-COMMISSIONING,S2 2AG
Department of Health,NHS Sheffield CCG,2/29/2020,C&M-PMS PCN DES Participation,PRC DELEGATED CO-COMMISSIONING,EAST BANK MEDICAL CENTRE,30986685,914.08,PRC DELEGATED CO-COMMISSIONING,S2 2AG
Department of Health,NHS Sheffield CCG,2/29/2020,C&M-PMS PCO Locum Adop/Pat/Mat,PRC DELEGATED CO-COMMISSIONING,EAST BANK MEDICAL CENTRE,30986685,"1,143.06",PRC DELEGATED CO-COMMISSIONING,S2 2AG
Department of Health,NHS Sheffield CCG,2/29/2020,C&M-PMS Prem Notional Rent,PRC DELEGATED CO-COMMISSIONING,EAST BANK MEDICAL CENTRE,30986685,"10,583.33",PRC DELEGATED CO-COMMISSIONING,S2 2AG
Department of Health,NHS Sheffield CCG,2/29/2020,C&M-PMS QOF Aspiration,PRC DELEGATED CO-COMMISSIONING,EAST BANK MEDICAL CENTRE,30986685,"5,026.31",PRC DELEGATED CO-COMMISSIONING,S2 2AG
Department of Health,NHS Sheffield CCG,2/29/2020,C&M-GMS Cost of Drugs -Prescribing,LOCAL ENHANCED SERVICES,ECCLESFIELD GROUP PRACTICE,31201463,"3,113.16",LOCAL ENHANCED SERVICES,S35 9XQ
Department of Health,NHS Sheffield CCG,2/29/2020,C&M-GMS DES Extended Hours Access,PRC DELEGATED CO-COMMISSIONING,ECCLESFIELD GROUP PRACTICE,31201463,"5,190.33",PRC DELEGATED CO-COMMISSIONING,S35 9XQ
Department of Health,NHS Sheffield CCG,2/29/2020,C&M-GMS DES Learn Dsblty Hlth Chk,PRC DELEGATED CO-COMMISSIONING,ECCLESFIELD GROUP PRACTICE,31201463,"3,920.00",PRC DELEGATED CO-COMMISSIONING,S35 9XQ
Department of Health,NHS Sheffield CCG,2/29/2020,C&M-GMS DES Minor Surgery,PRC DELEGATED CO-COMMISSIONING,ECCLESFIELD GROUP PRACTICE,31201463,560.00,PRC DELEGATED CO-COMMISSIONING,S35 9XQ
Department of Health,NHS Sheffield CCG,2/29/2020,C&M-GMS Global Sum,PRC DELEGATED CO-COMMISSIONING,ECCLESFIELD GROUP PRACTICE,31201463,"69,974.40",PRC DELEGATED CO-COMMISSIONING,S35 9XQ
Department of Health,NHS Sheffield CCG,2/29/2020,C&M-GMS PCN DES Clinical Director,PRC DELEGATED CO-COMMISSIONING,ECCLESFIELD GROUP PRACTICE,31201463,"2,427.51",PRC DELEGATED CO-COMMISSIONING,S35 9XQ
Department of Health,NHS Sheffield CCG,2/29/2020,C&M-GMS PCN DES PCN support,LOCAL ENHANCED SERVICES,ECCLESFIELD GROUP PRACTICE,31201463,"5,313.13",LOCAL ENHANCED SERVICES,S35 9XQ
Department of Health,NHS Sheffield CCG,2/29/2020,C&M-GMS PCN DES Participation,PRC DELEGATED CO-COMMISSIONING,ECCLESFIELD GROUP PRACTICE,31201463,"1,400.97",PRC DELEGATED CO-COMMISSIONING,S35 9XQ
Department of Health,NHS Sheffield CCG,2/29/2020,C&M-GMS PCO Locum Adop/Pat/Mat,PRC DELEGATED CO-COMMISSIONING,ECCLESFIELD GROUP PRACTICE,31201463,"11,866.38",PRC DELEGATED CO-COMMISSIONING,S35 9XQ
Department of Health,NHS Sheffield CCG,2/29/2020,C&M-GMS Prem Notional Rent,PRC DELEGATED CO-COMMISSIONING,ECCLESFIELD GROUP PRACTICE,31201463,"6,805.42",PRC DELEGATED CO-COMMISSIONING,S35 9XQ
Department of Health,NHS Sheffield CCG,2/29/2020,C&M-GMS Prem Water Rates,PRC DELEGATED CO-COMMISSIONING,ECCLESFIELD GROUP PRACTICE,31201463,596.82,PRC DELEGATED CO-COMMISSIONING,S35 9XQ
Department of Health,NHS Sheffield CCG,2/29/2020,C&M-GMS Prof Fees Prescribing,PRC DELEGATED CO-COMMISSIONING,ECCLESFIELD GROUP PRACTICE,31201463,480.01,PRC DELEGATED CO-COMMISSIONING,S35 9XQ
Department of Health,NHS Sheffield CCG,2/29/2020,C&M-GMS QOF Aspiration,PRC DELEGATED CO-COMMISSIONING,ECCLESFIELD GROUP PRACTICE,31201463,"9,179.49",PRC DELEGATED CO-COMMISSIONING,S35 9XQ
Department of Health,NHS Sheffield CCG,2/29/2020,C&M-GMS Cost of Drugs -Prescribing,LOCAL ENHANCED SERVICES,ELM LANE SURGERY,31201465,"2,223.51",LOCAL ENHANCED SERVICES,S5 7TW
Department of Health,NHS Sheffield CCG,2/29/2020,C&M-GMS DES Minor Surgery,PRC DELEGATED CO-COMMISSIONING,ELM LANE SURGERY,31201465,80.00,PRC DELEGATED CO-COMMISSIONING,S5 7TW
Department of Health,NHS Sheffield CCG,2/29/2020,C&M-GMS Global Sum,PRC DELEGATED CO-COMMISSIONING,ELM LANE SURGERY,31201465,"41,403.18",PRC DELEGATED CO-COMMISSIONING,S5 7TW
Department of Health,NHS Sheffield CCG,2/29/2020,C&M-GMS MPIG Correction Factor,PRC DELEGATED CO-COMMISSIONING,ELM LANE SURGERY,31201465,419.26,PRC DELEGATED CO-COMMISSIONING,S5 7TW
Department of Health,NHS Sheffield CCG,2/29/2020,C&M-GMS PCN DES Participation,PRC DELEGATED CO-COMMISSIONING,ELM LANE SURGERY,31201465,821.44,PRC DELEGATED CO-COMMISSIONING,S5 7TW
Department of Health,NHS Sheffield CCG,2/29/2020,C&M-GMS PCO Other,PRC DELEGATED CO-COMMISSIONING,ELM LANE SURGERY,31201465,"3,481.00",PRC DELEGATED CO-COMMISSIONING,S5 7TW
Department of Health,NHS Sheffield CCG,2/29/2020,C&M-GMS Prem Notional Rent,PRC DELEGATED CO-COMMISSIONING,ELM LANE SURGERY,31201465,"5,343.00",PRC DELEGATED CO-COMMISSIONING,S5 7TW
Department of Health,NHS Sheffield CCG,2/29/2020,C&M-GMS Prem Rates,PRC DELEGATED CO-COMMISSIONING,ELM LANE SURGERY,31201465,"14,205.19",PRC DELEGATED CO-COMMISSIONING,S5 7TW
Department of Health,NHS Sheffield CCG,2/29/2020,C&M-GMS Prof Fees Prescribing,PRC DELEGATED CO-COMMISSIONING,ELM LANE SURGERY,31201465,279.31,PRC DELEGATED CO-COMMISSIONING,S5 7TW
Department of Health,NHS Sheffield CCG,2/29/2020,C&M-GMS QOF Aspiration,PRC DELEGATED CO-COMMISSIONING,ELM LANE SURGERY,31201465,"4,720.25",PRC DELEGATED CO-COMMISSIONING,S5 7TW
Department of Health,NHS Sheffield CCG,2/29/2020,Cont Care-Physical Disab (<65),CHC ADULT FULLY FUNDED,FAIRWINDS HEALTH CARE LTD,31037728,"32,447.31",CHC ADULT FULLY FUNDED,S61 1AJ
Department of Health,NHS Sheffield CCG,2/29/2020,C&M-PMS Contract Value,PRC DELEGATED CO-COMMISSIONING,FALKLAND HOUSE,30986689,"26,085.22",PRC DELEGATED CO-COMMISSIONING,S11 7PL
Department of Health,NHS Sheffield CCG,2/29/2020,C&M-PMS DES Learn Dsblty Hlth Chk,PRC DELEGATED CO-COMMISSIONING,FALKLAND HOUSE,30986689,420.00,PRC DELEGATED CO-COMMISSIONING,S11 7PL
Department of Health,NHS Sheffield CCG,2/29/2020,C&M-PMS Out of Hours Opt Outs,PRC DELEGATED CO-COMMISSIONING,FALKLAND HOUSE,30986689,5.54,PRC DELEGATED CO-COMMISSIONING,S11 7PL
Department of Health,NHS Sheffield CCG,2/29/2020,C&M-PMS PCN DES Participation,PRC DELEGATED CO-COMMISSIONING,FALKLAND HOUSE,30986689,495.54,PRC DELEGATED CO-COMMISSIONING,S11 7PL
Department of Health,NHS Sheffield CCG,2/29/2020,C&M-PMS Prem Notional Rent,PRC DELEGATED CO-COMMISSIONING,FALKLAND HOUSE,30986689,"1,866.67",PRC DELEGATED CO-COMMISSIONING,S11 7PL
Department of Health,NHS Sheffield CCG,2/29/2020,C&M-PMS Prem Water Rates,PRC DELEGATED CO-COMMISSIONING,FALKLAND HOUSE,30986689,75.84,PRC DELEGATED CO-COMMISSIONING,S11 7PL
Department of Health,NHS Sheffield CCG,2/29/2020,C&M-PMS QOF Aspiration,PRC DELEGATED CO-COMMISSIONING,FALKLAND HOUSE,30986689,"2,925.24",PRC DELEGATED CO-COMMISSIONING,S11 7PL
Department of Health,NHS Sheffield CCG,2/29/2020,C&M-GMS Cost of Drugs -Prescribing,LOCAL ENHANCED SERVICES,FAR LANE MEDICAL CENTRE,31201474,"9,692.97",LOCAL ENHANCED SERVICES,S6 4FA
Department of Health,NHS Sheffield CCG,2/29/2020,C&M-GMS DES Learn Dsblty Hlth Chk,PRC DELEGATED CO-COMMISSIONING,FAR LANE MEDICAL CENTRE,31201474,"2,100.00",PRC DELEGATED CO-COMMISSIONING,S6 4FA
Department of Health,NHS Sheffield CCG,2/29/2020,C&M-GMS DES Minor Surgery,PRC DELEGATED CO-COMMISSIONING,FAR LANE MEDICAL CENTRE,31201474,"1,655.00",PRC DELEGATED CO-COMMISSIONING,S6 4FA
Department of Health,NHS Sheffield CCG,2/29/2020,C&M-GMS Global Sum,PRC DELEGATED CO-COMMISSIONING,FAR LANE MEDICAL CENTRE,31201474,"55,386.09",PRC DELEGATED CO-COMMISSIONING,S6 4FA
Department of Health,NHS Sheffield CCG,2/29/2020,C&M-GMS PCN DES Participation,PRC DELEGATED CO-COMMISSIONING,FAR LANE MEDICAL CENTRE,31201474,"1,138.48",PRC DELEGATED CO-COMMISSIONING,S6 4FA
Department of Health,NHS Sheffield CCG,2/29/2020,C&M-GMS Prem Notional Rent,PRC DELEGATED CO-COMMISSIONING,FAR LANE MEDICAL CENTRE,31201474,"3,462.50",PRC DELEGATED CO-COMMISSIONING,S6 4FA
Department of Health,NHS Sheffield CCG,2/29/2020,C&M-GMS Prem Water Rates,PRC DELEGATED CO-COMMISSIONING,FAR LANE MEDICAL CENTRE,31201474,68.70,PRC DELEGATED CO-COMMISSIONING,S6 4FA
Department of Health,NHS Sheffield CCG,2/29/2020,C&M-GMS Prof Fees Prescribing,PRC DELEGATED CO-COMMISSIONING,FAR LANE MEDICAL CENTRE,31201474,"1,833.14",PRC DELEGATED CO-COMMISSIONING,S6 4FA
Department of Health,NHS Sheffield CCG,2/29/2020,C&M-GMS QOF Aspiration,PRC DELEGATED CO-COMMISSIONING,FAR LANE MEDICAL CENTRE,31201474,"5,719.80",PRC DELEGATED CO-COMMISSIONING,S6 4FA
Department of Health,NHS Sheffield CCG,2/29/2020,C&M-PMS Contract Value,PRC DELEGATED CO-COMMISSIONING,FIRTH PARK SURGERY,30986686,"-1,326.62",PRC DELEGATED CO-COMMISSIONING,S5 6HH
Department of Health,NHS Sheffield CCG,2/29/2020,C&M-PMS GP Statutory Levy,PRC DELEGATED CO-COMMISSIONING,FIRTH PARK SURGERY,30986686,-352.31,PRC DELEGATED CO-COMMISSIONING,S5 6HH
Department of Health,NHS Sheffield CCG,2/29/2020,C&M-PMS Out of Hours Opt Outs,PRC DELEGATED CO-COMMISSIONING,FIRTH PARK SURGERY,30986686,"-3,617.62",PRC DELEGATED CO-COMMISSIONING,S5 6HH
Department of Health,NHS Sheffield CCG,2/29/2020,C&M-PMS Contract Value,PRC DELEGATED CO-COMMISSIONING,FIRTH PARK SURGERY,30986687,"77,167.62",PRC DELEGATED CO-COMMISSIONING,S5 6HH
Department of Health,NHS Sheffield CCG,2/29/2020,C&M-PMS Out of Hours Opt Outs,PRC DELEGATED CO-COMMISSIONING,FIRTH PARK SURGERY,30986687,64.09,PRC DELEGATED CO-COMMISSIONING,S5 6HH
Department of Health,NHS Sheffield CCG,2/29/2020,C&M-PMS PCN DES Participation,PRC DELEGATED CO-COMMISSIONING,FIRTH PARK SURGERY,30986687,"1,468.51",PRC DELEGATED CO-COMMISSIONING,S5 6HH
Department of Health,NHS Sheffield CCG,2/29/2020,C&M-PMS Prem Notional Rent,PRC DELEGATED CO-COMMISSIONING,FIRTH PARK SURGERY,30986687,"4,500.00",PRC DELEGATED CO-COMMISSIONING,S5 6HH
Department of Health,NHS Sheffield CCG,2/29/2020,C&M-PMS Prem Rates,PRC DELEGATED CO-COMMISSIONING,FIRTH PARK SURGERY,30986687,"1,360.00",PRC DELEGATED CO-COMMISSIONING,S5 6HH
Department of Health,NHS Sheffield CCG,2/29/2020,C&M-PMS QOF Aspiration,PRC DELEGATED CO-COMMISSIONING,FIRTH PARK SURGERY,30986687,"7,493.92",PRC DELEGATED CO-COMMISSIONING,S5 6HH
Department of Health,NHS Sheffield CCG,2/29/2020,C&M-PMS Contract Value,PRC DELEGATED CO-COMMISSIONING,FORGE HEALTH GROUP,30986735,"119,515.33",PRC DELEGATED CO-COMMISSIONING,S3 9DL
Department of Health,NHS Sheffield CCG,2/29/2020,C&M-PMS DES Extended Hours Access,PRC DELEGATED CO-COMMISSIONING,FORGE HEALTH GROUP,30986735,"6,869.48",PRC DELEGATED CO-COMMISSIONING,S3 9DL
Department of Health,NHS Sheffield CCG,2/29/2020,C&M-PMS DES Learn Dsblty Hlth Chk,PRC DELEGATED CO-COMMISSIONING,FORGE HEALTH GROUP,30986735,"1,960.00",PRC DELEGATED CO-COMMISSIONING,S3 9DL
Department of Health,NHS Sheffield CCG,2/29/2020,C&M-PMS Out of Hours Opt Outs,PRC DELEGATED CO-COMMISSIONING,FORGE HEALTH GROUP,30986735,10.15,PRC DELEGATED CO-COMMISSIONING,S3 9DL
Department of Health,NHS Sheffield CCG,2/29/2020,C&M-PMS PCN DES Clinical Director,PRC DELEGATED CO-COMMISSIONING,FORGE HEALTH GROUP,30986735,"3,212.84",PRC DELEGATED CO-COMMISSIONING,S3 9DL
Department of Health,NHS Sheffield CCG,2/29/2020,C&M-PMS PCN DES PCN support,LOCAL ENHANCED SERVICES,FORGE HEALTH GROUP,30986735,"7,032.00",LOCAL ENHANCED SERVICES,S3 9DL
Department of Health,NHS Sheffield CCG,2/29/2020,C&M-PMS PCN DES Participation,PRC DELEGATED CO-COMMISSIONING,FORGE HEALTH GROUP,30986735,"2,225.15",PRC DELEGATED CO-COMMISSIONING,S3 9DL
Department of Health,NHS Sheffield CCG,2/29/2020,C&M-PMS Prem Healthcentre Rent,PRC DELEGATED CO-COMMISSIONING,FORGE HEALTH GROUP,30986735,"32,899.56",PRC DELEGATED CO-COMMISSIONING,S3 9DL
Department of Health,NHS Sheffield CCG,2/29/2020,C&M-PMS Prem Notional Rent,PRC DELEGATED CO-COMMISSIONING,FORGE HEALTH GROUP,30986735,"9,650.00",PRC DELEGATED CO-COMMISSIONING,S3 9DL
Department of Health,NHS Sheffield CCG,2/29/2020,C&M-PMS QOF Aspiration,PRC DELEGATED CO-COMMISSIONING,FORGE HEALTH GROUP,30986735,"11,432.76",PRC DELEGATED CO-COMMISSIONING,S3 9DL
Department of Health,NHS Sheffield CCG,2/29/2020,C&M-PMS Contract Value,PRC DELEGATED CO-COMMISSIONING,FOXHILL MEDICAL CENTRE SHEFFIELD,30986733,"51,898.29",PRC DELEGATED CO-COMMISSIONING,S6 1GA
Department of Health,NHS Sheffield CCG,2/29/2020,C&M-PMS DES Learn Dsblty Hlth Chk,PRC DELEGATED CO-COMMISSIONING,FOXHILL MEDICAL CENTRE SHEFFIELD,30986733,"1,680.00",PRC DELEGATED CO-COMMISSIONING,S6 1GA
Department of Health,NHS Sheffield CCG,2/29/2020,C&M-PMS Out of Hours Opt Outs,PRC DELEGATED CO-COMMISSIONING,FOXHILL MEDICAL CENTRE SHEFFIELD,30986733,12.80,PRC DELEGATED CO-COMMISSIONING,S6 1GA
Department of Health,NHS Sheffield CCG,2/29/2020,C&M-PMS PCN DES Participation,PRC DELEGATED CO-COMMISSIONING,FOXHILL MEDICAL CENTRE SHEFFIELD,30986733,977.79,PRC DELEGATED CO-COMMISSIONING,S6 1GA
Department of Health,NHS Sheffield CCG,2/29/2020,C&M-PMS Prem Healthcentre Rent,PRC DELEGATED CO-COMMISSIONING,FOXHILL MEDICAL CENTRE SHEFFIELD,30986733,"46,751.17",PRC DELEGATED CO-COMMISSIONING,S6 1GA
Department of Health,NHS Sheffield CCG,2/29/2020,C&M-PMS QOF Aspiration,PRC DELEGATED CO-COMMISSIONING,FOXHILL MEDICAL CENTRE SHEFFIELD,30986733,"5,618.87",PRC DELEGATED CO-COMMISSIONING,S6 1GA
Department of Health,NHS Sheffield CCG,2/29/2020,NHS Recbles <1Yr- CHC Risk Pool Con,CHC ADULT FULLY FUNDED,FYLDE LAW,30966297,"41,076.52",CHC ADULT FULLY FUNDED,FY8 1HN
Department of Health,NHS Sheffield CCG,2/29/2020,C&M-PMS Contract Value,PRC DELEGATED CO-COMMISSIONING,GLEADLESS MEDICAL CENTRE,30986691,"69,530.18",PRC DELEGATED CO-COMMISSIONING,S14 1PQ
Department of Health,NHS Sheffield CCG,2/29/2020,C&M-PMS DES Learn Dsblty Hlth Chk,PRC DELEGATED CO-COMMISSIONING,GLEADLESS MEDICAL CENTRE,30986691,700.00,PRC DELEGATED CO-COMMISSIONING,S14 1PQ
Department of Health,NHS Sheffield CCG,2/29/2020,C&M-PMS Out of Hours Opt Outs,PRC DELEGATED CO-COMMISSIONING,GLEADLESS MEDICAL CENTRE,30986691,1.29,PRC DELEGATED CO-COMMISSIONING,S14 1PQ
Department of Health,NHS Sheffield CCG,2/29/2020,C&M-PMS PCN DES Participation,PRC DELEGATED CO-COMMISSIONING,GLEADLESS MEDICAL CENTRE,30986691,"1,300.70",PRC DELEGATED CO-COMMISSIONING,S14 1PQ
Department of Health,NHS Sheffield CCG,2/29/2020,C&M-PMS Prem Notional Rent,PRC DELEGATED CO-COMMISSIONING,GLEADLESS MEDICAL CENTRE,30986691,"6,750.00",PRC DELEGATED CO-COMMISSIONING,S14 1PQ
Department of Health,NHS Sheffield CCG,2/29/2020,C&M-PMS Prem Water Rates,PRC DELEGATED CO-COMMISSIONING,GLEADLESS MEDICAL CENTRE,30986691,193.56,PRC DELEGATED CO-COMMISSIONING,S14 1PQ
Department of Health,NHS Sheffield CCG,2/29/2020,C&M-PMS QOF Aspiration,PRC DELEGATED CO-COMMISSIONING,GLEADLESS MEDICAL CENTRE,30986691,"7,710.90",PRC DELEGATED CO-COMMISSIONING,S14 1PQ
Department of Health,NHS Sheffield CCG,2/29/2020,C&M-GMS Cost of Drugs -Prescribing,LOCAL ENHANCED SERVICES,GRENOSIDE SURGERY,31201482,"2,791.09",LOCAL ENHANCED SERVICES,S35 8NX
Department of Health,NHS Sheffield CCG,2/29/2020,C&M-GMS DES Minor Surgery,PRC DELEGATED CO-COMMISSIONING,GRENOSIDE SURGERY,31201482,585.00,PRC DELEGATED CO-COMMISSIONING,S35 8NX
Department of Health,NHS Sheffield CCG,2/29/2020,C&M-GMS Global Sum,PRC DELEGATED CO-COMMISSIONING,GRENOSIDE SURGERY,31201482,"59,340.93",PRC DELEGATED CO-COMMISSIONING,S35 8NX
Department of Health,NHS Sheffield CCG,2/29/2020,C&M-GMS PCN DES Participation,PRC DELEGATED CO-COMMISSIONING,GRENOSIDE SURGERY,31201482,"1,190.25",PRC DELEGATED CO-COMMISSIONING,S35 8NX
Department of Health,NHS Sheffield CCG,2/29/2020,C&M-GMS Prem Notional Rent,PRC DELEGATED CO-COMMISSIONING,GRENOSIDE SURGERY,31201482,"8,110.42",PRC DELEGATED CO-COMMISSIONING,S35 8NX
Department of Health,NHS Sheffield CCG,2/29/2020,C&M-GMS Prof Fees Prescribing,PRC DELEGATED CO-COMMISSIONING,GRENOSIDE SURGERY,31201482,287.60,PRC DELEGATED CO-COMMISSIONING,S35 8NX
Department of Health,NHS Sheffield CCG,2/29/2020,C&M-GMS QOF Aspiration,PRC DELEGATED CO-COMMISSIONING,GRENOSIDE SURGERY,31201482,"5,686.85",PRC DELEGATED CO-COMMISSIONING,S35 8NX
Department of Health,NHS Sheffield CCG,2/29/2020,C&M-GMS Cost of Drugs -Prescribing,LOCAL ENHANCED SERVICES,GREYSTONES MEDICAL CENTRE,31201484,730.74,LOCAL ENHANCED SERVICES,S11 7BJ
Department of Health,NHS Sheffield CCG,2/29/2020,C&M-GMS DES Minor Surgery,PRC DELEGATED CO-COMMISSIONING,GREYSTONES MEDICAL CENTRE,31201484,375.00,PRC DELEGATED CO-COMMISSIONING,S11 7BJ
Department of Health,NHS Sheffield CCG,2/29/2020,C&M-GMS Global Sum,PRC DELEGATED CO-COMMISSIONING,GREYSTONES MEDICAL CENTRE,31201484,"19,868.44",PRC DELEGATED CO-COMMISSIONING,S11 7BJ
Department of Health,NHS Sheffield CCG,2/29/2020,C&M-GMS MPIG Correction Factor,PRC DELEGATED CO-COMMISSIONING,GREYSTONES MEDICAL CENTRE,31201484,552.23,PRC DELEGATED CO-COMMISSIONING,S11 7BJ
Department of Health,NHS Sheffield CCG,2/29/2020,C&M-GMS PCN DES Participation,PRC DELEGATED CO-COMMISSIONING,GREYSTONES MEDICAL CENTRE,31201484,405.94,PRC DELEGATED CO-COMMISSIONING,S11 7BJ
Department of Health,NHS Sheffield CCG,2/29/2020,C&M-GMS Prem Notional Rent,PRC DELEGATED CO-COMMISSIONING,GREYSTONES MEDICAL CENTRE,31201484,"2,885.42",PRC DELEGATED CO-COMMISSIONING,S11 7BJ
Department of Health,NHS Sheffield CCG,2/29/2020,C&M-GMS Prem Rates,PRC DELEGATED CO-COMMISSIONING,GREYSTONES MEDICAL CENTRE,31201484,606.00,PRC DELEGATED CO-COMMISSIONING,S11 7BJ
Department of Health,NHS Sheffield CCG,2/29/2020,C&M-GMS Prof Fees Prescribing,PRC DELEGATED CO-COMMISSIONING,GREYSTONES MEDICAL CENTRE,31201484,136.55,PRC DELEGATED CO-COMMISSIONING,S11 7BJ
Department of Health,NHS Sheffield CCG,2/29/2020,C&M-GMS QOF Aspiration,PRC DELEGATED CO-COMMISSIONING,GREYSTONES MEDICAL CENTRE,31201484,"2,314.72",PRC DELEGATED CO-COMMISSIONING,S11 7BJ
Department of Health,NHS Sheffield CCG,2/29/2020,C&M-PMS Contract Value,PRC DELEGATED CO-COMMISSIONING,HACKENTHORPE MEDICAL CENTRE,31017995,"49,166.53",PRC DELEGATED CO-COMMISSIONING,S12 4LA
Department of Health,NHS Sheffield CCG,2/29/2020,C&M-PMS DES Learn Dsblty Hlth Chk,PRC DELEGATED CO-COMMISSIONING,HACKENTHORPE MEDICAL CENTRE,31017995,700.00,PRC DELEGATED CO-COMMISSIONING,S12 4LA
Department of Health,NHS Sheffield CCG,2/29/2020,C&M-PMS Out of Hours Opt Outs,PRC DELEGATED CO-COMMISSIONING,HACKENTHORPE MEDICAL CENTRE,31017995,49.48,PRC DELEGATED CO-COMMISSIONING,S12 4LA
Department of Health,NHS Sheffield CCG,2/29/2020,C&M-PMS PCN DES Participation,PRC DELEGATED CO-COMMISSIONING,HACKENTHORPE MEDICAL CENTRE,31017995,926.86,PRC DELEGATED CO-COMMISSIONING,S12 4LA
Department of Health,NHS Sheffield CCG,2/29/2020,C&M-PMS PCO Locum Sickness,PRC DELEGATED CO-COMMISSIONING,HACKENTHORPE MEDICAL CENTRE,31017995,"12,294.12",PRC DELEGATED CO-COMMISSIONING,S12 4LA
Department of Health,NHS Sheffield CCG,2/29/2020,C&M-PMS Prem Notional Rent,PRC DELEGATED CO-COMMISSIONING,HACKENTHORPE MEDICAL CENTRE,31017995,"5,116.67",PRC DELEGATED CO-COMMISSIONING,S12 4LA
Department of Health,NHS Sheffield CCG,2/29/2020,C&M-PMS Prem Water Rates,PRC DELEGATED CO-COMMISSIONING,HACKENTHORPE MEDICAL CENTRE,31017995,197.87,PRC DELEGATED CO-COMMISSIONING,S12 4LA
Department of Health,NHS Sheffield CCG,2/29/2020,C&M-PMS QOF Aspiration,PRC DELEGATED CO-COMMISSIONING,HACKENTHORPE MEDICAL CENTRE,31017995,"6,528.39",PRC DELEGATED CO-COMMISSIONING,S12 4LA
Department of Health,NHS Sheffield CCG,2/29/2020,C&M-GMS Cost of Drugs -Prescribing,LOCAL ENHANCED SERVICES,HANDSWORTH MEDICAL PRACTICE SHEFFIELD,31201480,"1,621.64",LOCAL ENHANCED SERVICES,S13 9BZ
Department of Health,NHS Sheffield CCG,2/29/2020,C&M-GMS DES Learn Dsblty Hlth Chk,PRC DELEGATED CO-COMMISSIONING,HANDSWORTH MEDICAL PRACTICE SHEFFIELD,31201480,140.00,PRC DELEGATED CO-COMMISSIONING,S13 9BZ
Department of Health,NHS Sheffield CCG,2/29/2020,C&M-GMS DES Minor Surgery,PRC DELEGATED CO-COMMISSIONING,HANDSWORTH MEDICAL PRACTICE SHEFFIELD,31201480,280.00,PRC DELEGATED CO-COMMISSIONING,S13 9BZ
Department of Health,NHS Sheffield CCG,2/29/2020,C&M-GMS Global Sum,PRC DELEGATED CO-COMMISSIONING,HANDSWORTH MEDICAL PRACTICE SHEFFIELD,31201480,"77,844.19",PRC DELEGATED CO-COMMISSIONING,S13 9BZ
Department of Health,NHS Sheffield CCG,2/29/2020,C&M-GMS PCN DES Participation,PRC DELEGATED CO-COMMISSIONING,HANDSWORTH MEDICAL PRACTICE SHEFFIELD,31201480,"1,567.06",PRC DELEGATED CO-COMMISSIONING,S13 9BZ
Department of Health,NHS Sheffield CCG,2/29/2020,C&M-GMS PCO Locum Adop/Pat/Mat,PRC DELEGATED CO-COMMISSIONING,HANDSWORTH MEDICAL PRACTICE SHEFFIELD,31201480,"12,652.16",PRC DELEGATED CO-COMMISSIONING,S13 9BZ
Department of Health,NHS Sheffield CCG,2/29/2020,C&M-GMS Prem Notional Rent,PRC DELEGATED CO-COMMISSIONING,HANDSWORTH MEDICAL PRACTICE SHEFFIELD,31201480,"3,321.66",PRC DELEGATED CO-COMMISSIONING,S13 9BZ
Department of Health,NHS Sheffield CCG,2/29/2020,C&M-GMS Prof Fees Prescribing,PRC DELEGATED CO-COMMISSIONING,HANDSWORTH MEDICAL PRACTICE SHEFFIELD,31201480,388.97,PRC DELEGATED CO-COMMISSIONING,S13 9BZ
Department of Health,NHS Sheffield CCG,2/29/2020,C&M-GMS QOF Aspiration,PRC DELEGATED CO-COMMISSIONING,HANDSWORTH MEDICAL PRACTICE SHEFFIELD,31201480,"7,811.29",PRC DELEGATED CO-COMMISSIONING,S13 9BZ
Department of Health,NHS Sheffield CCG,2/29/2020,Cont Care-Physical Disab (<65),CHC ADULT FULLY FUNDED,HC ONE LTD,31037903,"25,552.51",CHC ADULT FULLY FUNDED,DL3 6AH
Department of Health,NHS Sheffield CCG,2/29/2020,C&M-GMS Cost of Drugs -Prescribing,LOCAL ENHANCED SERVICES,HEALTH CARE SURGERY,31201489,732.76,LOCAL ENHANCED SERVICES,S5 8GS
Department of Health,NHS Sheffield CCG,2/29/2020,C&M-GMS DES Learn Dsblty Hlth Chk,PRC DELEGATED CO-COMMISSIONING,HEALTH CARE SURGERY,31201489,140.00,PRC DELEGATED CO-COMMISSIONING,S5 8GS
Department of Health,NHS Sheffield CCG,2/29/2020,C&M-GMS DES Minor Surgery,PRC DELEGATED CO-COMMISSIONING,HEALTH CARE SURGERY,31201489,280.00,PRC DELEGATED CO-COMMISSIONING,S5 8GS
Department of Health,NHS Sheffield CCG,2/29/2020,C&M-GMS Global Sum,PRC DELEGATED CO-COMMISSIONING,HEALTH CARE SURGERY,31201489,"39,031.56",PRC DELEGATED CO-COMMISSIONING,S5 8GS
Department of Health,NHS Sheffield CCG,2/29/2020,C&M-GMS MPIG Correction Factor,PRC DELEGATED CO-COMMISSIONING,HEALTH CARE SURGERY,31201489,390.01,PRC DELEGATED CO-COMMISSIONING,S5 8GS
Department of Health,NHS Sheffield CCG,2/29/2020,C&M-GMS PCN DES Participation,PRC DELEGATED CO-COMMISSIONING,HEALTH CARE SURGERY,31201489,796.77,PRC DELEGATED CO-COMMISSIONING,S5 8GS
Department of Health,NHS Sheffield CCG,2/29/2020,C&M-GMS Prem Notional Rent,PRC DELEGATED CO-COMMISSIONING,HEALTH CARE SURGERY,31201489,"3,862.50",PRC DELEGATED CO-COMMISSIONING,S5 8GS
Department of Health,NHS Sheffield CCG,2/29/2020,C&M-GMS Prem Rates,PRC DELEGATED CO-COMMISSIONING,HEALTH CARE SURGERY,31201489,645.88,PRC DELEGATED CO-COMMISSIONING,S5 8GS
Department of Health,NHS Sheffield CCG,2/29/2020,C&M-GMS Prof Fees Prescribing,PRC DELEGATED CO-COMMISSIONING,HEALTH CARE SURGERY,31201489,175.87,PRC DELEGATED CO-COMMISSIONING,S5 8GS
Department of Health,NHS Sheffield CCG,2/29/2020,C&M-GMS QOF Aspiration,PRC DELEGATED CO-COMMISSIONING,HEALTH CARE SURGERY,31201489,"4,056.36",PRC DELEGATED CO-COMMISSIONING,S5 8GS
Department of Health,NHS Sheffield CCG,2/29/2020,C&M-GMS Cost of Drugs -Prescribing,LOCAL ENHANCED SERVICES,HEELEY GREEN SURGERY,31201486,"1,636.86",LOCAL ENHANCED SERVICES,S2 3AJ
Department of Health,NHS Sheffield CCG,2/29/2020,C&M-GMS DES Learn Dsblty Hlth Chk,PRC DELEGATED CO-COMMISSIONING,HEELEY GREEN SURGERY,31201486,700.00,PRC DELEGATED CO-COMMISSIONING,S2 3AJ
Department of Health,NHS Sheffield CCG,2/29/2020,C&M-GMS Global Sum,PRC DELEGATED CO-COMMISSIONING,HEELEY GREEN SURGERY,31201486,"41,717.36",PRC DELEGATED CO-COMMISSIONING,S2 3AJ
Department of Health,NHS Sheffield CCG,2/29/2020,C&M-GMS MPIG Correction Factor,PRC DELEGATED CO-COMMISSIONING,HEELEY GREEN SURGERY,31201486,188.10,PRC DELEGATED CO-COMMISSIONING,S2 3AJ
Department of Health,NHS Sheffield CCG,2/29/2020,C&M-GMS PCN DES Participation,PRC DELEGATED CO-COMMISSIONING,HEELEY GREEN SURGERY,31201486,875.00,PRC DELEGATED CO-COMMISSIONING,S2 3AJ
Department of Health,NHS Sheffield CCG,2/29/2020,C&M-GMS Prem Notional Rent,PRC DELEGATED CO-COMMISSIONING,HEELEY GREEN SURGERY,31201486,"3,254.17",PRC DELEGATED CO-COMMISSIONING,S2 3AJ
Department of Health,NHS Sheffield CCG,2/29/2020,C&M-GMS Prof Fees Prescribing,PRC DELEGATED CO-COMMISSIONING,HEELEY GREEN SURGERY,31201486,273.10,PRC DELEGATED CO-COMMISSIONING,S2 3AJ
Department of Health,NHS Sheffield CCG,2/29/2020,C&M-GMS QOF Aspiration,PRC DELEGATED CO-COMMISSIONING,HEELEY GREEN SURGERY,31201486,"4,709.02",PRC DELEGATED CO-COMMISSIONING,S2 3AJ
Department of Health,NHS Sheffield CCG,2/29/2020,C&M-GMS Cost of Drugs -Prescribing,LOCAL ENHANCED SERVICES,HOLLIES MEDICAL CENTRE,31224398,"2,145.35",LOCAL ENHANCED SERVICES,S11 9AL
Department of Health,NHS Sheffield CCG,2/29/2020,C&M-GMS DES Learn Dsblty Hlth Chk,PRC DELEGATED CO-COMMISSIONING,HOLLIES MEDICAL CENTRE,31224398,280.00,PRC DELEGATED CO-COMMISSIONING,S11 9AL
Department of Health,NHS Sheffield CCG,2/29/2020,C&M-GMS DES Minor Surgery,PRC DELEGATED CO-COMMISSIONING,HOLLIES MEDICAL CENTRE,31224398,535.00,PRC DELEGATED CO-COMMISSIONING,S11 9AL
Department of Health,NHS Sheffield CCG,2/29/2020,C&M-GMS Global Sum,PRC DELEGATED CO-COMMISSIONING,HOLLIES MEDICAL CENTRE,31224398,"61,231.91",PRC DELEGATED CO-COMMISSIONING,S11 9AL
Department of Health,NHS Sheffield CCG,2/29/2020,C&M-GMS MPIG Correction Factor,PRC DELEGATED CO-COMMISSIONING,HOLLIES MEDICAL CENTRE,31224398,726.36,PRC DELEGATED CO-COMMISSIONING,S11 9AL
Department of Health,NHS Sheffield CCG,2/29/2020,C&M-GMS PCN DES Participation,PRC DELEGATED CO-COMMISSIONING,HOLLIES MEDICAL CENTRE,31224398,"1,215.60",PRC DELEGATED CO-COMMISSIONING,S11 9AL
Department of Health,NHS Sheffield CCG,2/29/2020,C&M-GMS PCO Locum Sickness,PRC DELEGATED CO-COMMISSIONING,HOLLIES MEDICAL CENTRE,31224398,"3,951.52",PRC DELEGATED CO-COMMISSIONING,S11 9AL
Department of Health,NHS Sheffield CCG,2/29/2020,C&M-GMS Prem Notional Rent,PRC DELEGATED CO-COMMISSIONING,HOLLIES MEDICAL CENTRE,31224398,"3,229.17",PRC DELEGATED CO-COMMISSIONING,S11 9AL
Department of Health,NHS Sheffield CCG,2/29/2020,C&M-GMS Prem Rates,PRC DELEGATED CO-COMMISSIONING,HOLLIES MEDICAL CENTRE,31224398,"12,520.50",PRC DELEGATED CO-COMMISSIONING,S11 9AL
Department of Health,NHS Sheffield CCG,2/29/2020,C&M-GMS Prof Fees Prescribing,PRC DELEGATED CO-COMMISSIONING,HOLLIES MEDICAL CENTRE,31224398,391.05,PRC DELEGATED CO-COMMISSIONING,S11 9AL
Department of Health,NHS Sheffield CCG,2/29/2020,C&M-GMS QOF Aspiration,PRC DELEGATED CO-COMMISSIONING,HOLLIES MEDICAL CENTRE,31224398,"6,991.81",PRC DELEGATED CO-COMMISSIONING,S11 9AL
Department of Health,NHS Sheffield CCG,2/29/2020,Cont Care-Physical Disab (<65),CHC ADULT FULLY FUNDED,HORIZON CARE HOMES LTD,31024155,"88,986.70",CHC ADULT FULLY FUNDED,S25 3QA
Department of Health,NHS Sheffield CCG,2/29/2020,Cont Care-Physical Disab (<65),CHC ADULT FULLY FUNDED,HORIZON CARE HOMES LTD,31037935,"30,988.83",CHC ADULT FULLY FUNDED,S25 3QA
Department of Health,NHS Sheffield CCG,2/29/2020,Cont Care-Physical Disab (<65),CHC ADULT FULLY FUNDED,HORIZON CARE HOMES LTD,31037939,"33,390.61",CHC ADULT FULLY FUNDED,S25 3QA
Department of Health,NHS Sheffield CCG,2/29/2020,C&M-PMS Contract Value,PRC DELEGATED CO-COMMISSIONING,JAUNTY SPRINGS HEALTH CENTRE,30986693,"31,192.54",PRC DELEGATED CO-COMMISSIONING,S12 3DZ
Department of Health,NHS Sheffield CCG,2/29/2020,C&M-PMS DES Extended Hours Access,PRC DELEGATED CO-COMMISSIONING,JAUNTY SPRINGS HEALTH CENTRE,30986693,"4,210.64",PRC DELEGATED CO-COMMISSIONING,S12 3DZ
Department of Health,NHS Sheffield CCG,2/29/2020,C&M-PMS DES Learn Dsblty Hlth Chk,PRC DELEGATED CO-COMMISSIONING,JAUNTY SPRINGS HEALTH CENTRE,30986693,140.00,PRC DELEGATED CO-COMMISSIONING,S12 3DZ
Department of Health,NHS Sheffield CCG,2/29/2020,C&M-PMS Out of Hours Opt Outs,PRC DELEGATED CO-COMMISSIONING,JAUNTY SPRINGS HEALTH CENTRE,30986693,1.13,PRC DELEGATED CO-COMMISSIONING,S12 3DZ
Department of Health,NHS Sheffield CCG,2/29/2020,C&M-PMS PCN DES Clinical Director,PRC DELEGATED CO-COMMISSIONING,JAUNTY SPRINGS HEALTH CENTRE,30986693,"1,969.31",PRC DELEGATED CO-COMMISSIONING,S12 3DZ
Department of Health,NHS Sheffield CCG,2/29/2020,C&M-PMS PCN DES PCN support,LOCAL ENHANCED SERVICES,JAUNTY SPRINGS HEALTH CENTRE,30986693,"4,310.25",LOCAL ENHANCED SERVICES,S12 3DZ
Department of Health,NHS Sheffield CCG,2/29/2020,C&M-PMS PCN DES Participation,PRC DELEGATED CO-COMMISSIONING,JAUNTY SPRINGS HEALTH CENTRE,30986693,583.08,PRC DELEGATED CO-COMMISSIONING,S12 3DZ
Department of Health,NHS Sheffield CCG,2/29/2020,C&M-PMS Prem Notional Rent,PRC DELEGATED CO-COMMISSIONING,JAUNTY SPRINGS HEALTH CENTRE,30986693,"3,208.33",PRC DELEGATED CO-COMMISSIONING,S12 3DZ
Department of Health,NHS Sheffield CCG,2/29/2020,C&M-PMS Prem Water Rates,PRC DELEGATED CO-COMMISSIONING,JAUNTY SPRINGS HEALTH CENTRE,30986693,63.78,PRC DELEGATED CO-COMMISSIONING,S12 3DZ
Department of Health,NHS Sheffield CCG,2/29/2020,C&M-PMS QOF Aspiration,PRC DELEGATED CO-COMMISSIONING,JAUNTY SPRINGS HEALTH CENTRE,30986693,"4,020.11",PRC DELEGATED CO-COMMISSIONING,S12 3DZ
Department of Health,NHS Sheffield CCG,2/29/2020,C&M-GMS IT Comm Servs -GP Practices,PRIMARY CARE IT,KIER BUSINESS SERVICES LTD,30899187,"71,245.90",https://nww.einvoice-prod.sbs.nhs.uk:8179/invoicepdf/3b87a5ac-004c-533b-8f48-4b2d930d778d,SG19 2BD
Department of Health,NHS Sheffield CCG,2/29/2020,FM Computer Contracts,BUSINESS INFORMATICS,KIER BUSINESS SERVICES LTD,31110584,"30,161.00",https://nww.einvoice-prod.sbs.nhs.uk:8179/invoicepdf/70ab5b49-8c5f-513a-a434-0c23433de7b9,SG19 2BD
Department of Health,NHS Sheffield CCG,2/29/2020,FM Computer Contracts,BUSINESS INFORMATICS,KIER BUSINESS SERVICES LTD,31110584,"106,174.60",BUSINESS INFORMATICS,SG19 2BD
Department of Health,NHS Sheffield CCG,2/29/2020,C&M-GMS LES Translation Fees,INTERPRETING SERVICES,LANGUAGELINE SOLUTIONS,30953771,"28,663.80",https://nww.einvoice-prod.sbs.nhs.uk:8179/invoicepdf/f4e9c4f3-c612-5fd9-b201-7c7707b37d32,E14 5NR
Department of Health,NHS Sheffield CCG,2/29/2020,C&M-GMS LES Translation Fees,INTERPRETING SERVICES,LANGUAGELINE SOLUTIONS,30953774,"51,374.88",https://nww.einvoice-prod.sbs.nhs.uk:8179/invoicepdf/6575e80e-045c-55ef-89a8-70cbbd7a9a0d,E14 5NR
Department of Health,NHS Sheffield CCG,2/29/2020,Hcare Srv Rec NHS Trust-Contract Baseline,ACUTE COMMISSIONING,LEEDS TEACHING HOSPITALS NHS TRUST,30899150,"57,500.00",https://nww.einvoice-prod.sbs.nhs.uk:8179/invoicepdf/ddc422f8-c0b4-5591-9798-94e816699d3d,LS9 7TF
Department of Health,NHS Sheffield CCG,2/29/2020,Cont Care-Physical Disab (<65),CHC ADULT FULLY FUNDED,LONGLEY HEALTH CARE LTD,31024135,"67,147.87",CHC ADULT FULLY FUNDED,S5 7JZ
Department of Health,NHS Sheffield CCG,2/29/2020,Cont Care-Physical Disab (<65),CHC ADULT FULLY FUNDED,LOXLEY HEALTH CARE LTD,31024138,"126,873.11",CHC ADULT FULLY FUNDED,S4 8NB
Department of Health,NHS Sheffield CCG,2/29/2020,C&M-PMS Contract Value,PRC DELEGATED CO-COMMISSIONING,MANCHESTER ROAD SURGERY SHEFFIELD,30986697,"33,230.76",PRC DELEGATED CO-COMMISSIONING,S10 5PN
Department of Health,NHS Sheffield CCG,2/29/2020,C&M-PMS PCN DES Participation,PRC DELEGATED CO-COMMISSIONING,MANCHESTER ROAD SURGERY SHEFFIELD,30986697,618.32,PRC DELEGATED CO-COMMISSIONING,S10 5PN
Department of Health,NHS Sheffield CCG,2/29/2020,C&M-PMS PCO Locum Adop/Pat/Mat,PRC DELEGATED CO-COMMISSIONING,MANCHESTER ROAD SURGERY SHEFFIELD,30986697,"2,286.12",PRC DELEGATED CO-COMMISSIONING,S10 5PN
Department of Health,NHS Sheffield CCG,2/29/2020,C&M-PMS Prem Cost Rent,PRC DELEGATED CO-COMMISSIONING,MANCHESTER ROAD SURGERY SHEFFIELD,30986697,"3,472.17",PRC DELEGATED CO-COMMISSIONING,S10 5PN
Department of Health,NHS Sheffield CCG,2/29/2020,C&M-PMS Prem Notional Rent,PRC DELEGATED CO-COMMISSIONING,MANCHESTER ROAD SURGERY SHEFFIELD,30986697,442.92,PRC DELEGATED CO-COMMISSIONING,S10 5PN
Department of Health,NHS Sheffield CCG,2/29/2020,C&M-PMS QOF Aspiration,PRC DELEGATED CO-COMMISSIONING,MANCHESTER ROAD SURGERY SHEFFIELD,30986697,"3,985.36",PRC DELEGATED CO-COMMISSIONING,S10 5PN
Department of Health,NHS Sheffield CCG,2/29/2020,C&M-PMS Contract Value,PRC DELEGATED CO-COMMISSIONING,MANOR & PARK GROUP PRACTICE,30995678,"84,061.28",PRC DELEGATED CO-COMMISSIONING,S2 5QQ
Department of Health,NHS Sheffield CCG,2/29/2020,C&M-PMS DES Learn Dsblty Hlth Chk,PRC DELEGATED CO-COMMISSIONING,MANOR & PARK GROUP PRACTICE,30995678,"4,200.00",PRC DELEGATED CO-COMMISSIONING,S2 5QQ
Department of Health,NHS Sheffield CCG,2/29/2020,C&M-PMS Out of Hours Opt Outs,PRC DELEGATED CO-COMMISSIONING,MANOR & PARK GROUP PRACTICE,30995678,200.23,PRC DELEGATED CO-COMMISSIONING,S2 5QQ
Department of Health,NHS Sheffield CCG,2/29/2020,C&M-PMS PCN DES Participation,PRC DELEGATED CO-COMMISSIONING,MANOR & PARK GROUP PRACTICE,30995678,"1,445.35",PRC DELEGATED CO-COMMISSIONING,S2 5QQ
Department of Health,NHS Sheffield CCG,2/29/2020,C&M-PMS Prem Notional Rent,PRC DELEGATED CO-COMMISSIONING,MANOR & PARK GROUP PRACTICE,30995678,"9,050.00",PRC DELEGATED CO-COMMISSIONING,S2 5QQ
Department of Health,NHS Sheffield CCG,2/29/2020,C&M-PMS QOF Aspiration,PRC DELEGATED CO-COMMISSIONING,MANOR & PARK GROUP PRACTICE,30995678,"7,420.75",PRC DELEGATED CO-COMMISSIONING,S2 5QQ
Department of Health,NHS Sheffield CCG,2/29/2020,C&M-GMS Cost of Drugs -Prescribing,LOCAL ENHANCED SERVICES,MATHEWS PRACTICE,31201497,193.45,LOCAL ENHANCED SERVICES,S2 4UJ
Department of Health,NHS Sheffield CCG,2/29/2020,C&M-GMS DES Minor Surgery,PRC DELEGATED CO-COMMISSIONING,MATHEWS PRACTICE,31201497,"1,675.00",PRC DELEGATED CO-COMMISSIONING,S2 4UJ
Department of Health,NHS Sheffield CCG,2/29/2020,C&M-GMS Global Sum,PRC DELEGATED CO-COMMISSIONING,MATHEWS PRACTICE,31201497,"57,960.36",PRC DELEGATED CO-COMMISSIONING,S2 4UJ
Department of Health,NHS Sheffield CCG,2/29/2020,C&M-GMS MPIG Correction Factor,PRC DELEGATED CO-COMMISSIONING,MATHEWS PRACTICE,31201497,299.48,PRC DELEGATED CO-COMMISSIONING,S2 4UJ
Department of Health,NHS Sheffield CCG,2/29/2020,C&M-GMS PCN DES Participation,PRC DELEGATED CO-COMMISSIONING,MATHEWS PRACTICE,31201497,"1,281.64",PRC DELEGATED CO-COMMISSIONING,S2 4UJ
Department of Health,NHS Sheffield CCG,2/29/2020,C&M-GMS Prem Notional Rent,PRC DELEGATED CO-COMMISSIONING,MATHEWS PRACTICE,31201497,"8,660.42",PRC DELEGATED CO-COMMISSIONING,S2 4UJ
Department of Health,NHS Sheffield CCG,2/29/2020,C&M-GMS Prof Fees Prescribing,PRC DELEGATED CO-COMMISSIONING,MATHEWS PRACTICE,31201497,91.03,PRC DELEGATED CO-COMMISSIONING,S2 4UJ
Department of Health,NHS Sheffield CCG,2/29/2020,C&M-GMS QOF Aspiration,PRC DELEGATED CO-COMMISSIONING,MATHEWS PRACTICE,31201497,"7,156.84",PRC DELEGATED CO-COMMISSIONING,S2 4UJ
Department of Health,NHS Sheffield CCG,2/29/2020,C&M-PMS Contract Value,PRC DELEGATED CO-COMMISSIONING,MEADOWHEAD GROUP PRACTICE,30986695,"74,447.56",PRC DELEGATED CO-COMMISSIONING,S8 7RL
Department of Health,NHS Sheffield CCG,2/29/2020,C&M-PMS DES Learn Dsblty Hlth Chk,PRC DELEGATED CO-COMMISSIONING,MEADOWHEAD GROUP PRACTICE,30986695,"1,120.00",PRC DELEGATED CO-COMMISSIONING,S8 7RL
Department of Health,NHS Sheffield CCG,2/29/2020,C&M-PMS Out of Hours Opt Outs,PRC DELEGATED CO-COMMISSIONING,MEADOWHEAD GROUP PRACTICE,30986695,108.67,PRC DELEGATED CO-COMMISSIONING,S8 7RL
Department of Health,NHS Sheffield CCG,2/29/2020,C&M-PMS PCN DES Participation,PRC DELEGATED CO-COMMISSIONING,MEADOWHEAD GROUP PRACTICE,30986695,"1,403.48",PRC DELEGATED CO-COMMISSIONING,S8 7RL
Department of Health,NHS Sheffield CCG,2/29/2020,C&M-PMS Prem Cost Rent,PRC DELEGATED CO-COMMISSIONING,MEADOWHEAD GROUP PRACTICE,30986695,"3,647.42",PRC DELEGATED CO-COMMISSIONING,S8 7RL
Department of Health,NHS Sheffield CCG,2/29/2020,C&M-PMS Prem Notional Rent,PRC DELEGATED CO-COMMISSIONING,MEADOWHEAD GROUP PRACTICE,30986695,"3,358.33",PRC DELEGATED CO-COMMISSIONING,S8 7RL
Department of Health,NHS Sheffield CCG,2/29/2020,C&M-PMS QOF Aspiration,PRC DELEGATED CO-COMMISSIONING,MEADOWHEAD GROUP PRACTICE,30986695,"9,076.52",PRC DELEGATED CO-COMMISSIONING,S8 7RL
Department of Health,NHS Sheffield CCG,2/29/2020,C&M-GMS Cost of Drugs -Prescribing,LOCAL ENHANCED SERVICES,MEDICAL CENTRE CRYSTAL PEAKS,31201493,"2,148.33",LOCAL ENHANCED SERVICES,S20 7HZ
Department of Health,NHS Sheffield CCG,2/29/2020,C&M-GMS DES Minor Surgery,PRC DELEGATED CO-COMMISSIONING,MEDICAL CENTRE CRYSTAL PEAKS,31201493,"3,245.00",PRC DELEGATED CO-COMMISSIONING,S20 7HZ
Department of Health,NHS Sheffield CCG,2/29/2020,C&M-GMS Global Sum,PRC DELEGATED CO-COMMISSIONING,MEDICAL CENTRE CRYSTAL PEAKS,31201493,"47,371.83",PRC DELEGATED CO-COMMISSIONING,S20 7HZ
Department of Health,NHS Sheffield CCG,2/29/2020,C&M-GMS MPIG Correction Factor,PRC DELEGATED CO-COMMISSIONING,MEDICAL CENTRE CRYSTAL PEAKS,31201493,565.67,PRC DELEGATED CO-COMMISSIONING,S20 7HZ
Department of Health,NHS Sheffield CCG,2/29/2020,C&M-GMS PCN DES Participation,PRC DELEGATED CO-COMMISSIONING,MEDICAL CENTRE CRYSTAL PEAKS,31201493,950.00,PRC DELEGATED CO-COMMISSIONING,S20 7HZ
Department of Health,NHS Sheffield CCG,2/29/2020,C&M-GMS Prem Notional Rent,PRC DELEGATED CO-COMMISSIONING,MEDICAL CENTRE CRYSTAL PEAKS,31201493,270.00,PRC DELEGATED CO-COMMISSIONING,S20 7HZ
Department of Health,NHS Sheffield CCG,2/29/2020,C&M-GMS Prof Fees Prescribing,PRC DELEGATED CO-COMMISSIONING,MEDICAL CENTRE CRYSTAL PEAKS,31201493,438.63,PRC DELEGATED CO-COMMISSIONING,S20 7HZ
Department of Health,NHS Sheffield CCG,2/29/2020,C&M-GMS QOF Aspiration,PRC DELEGATED CO-COMMISSIONING,MEDICAL CENTRE CRYSTAL PEAKS,31201493,"6,211.79",PRC DELEGATED CO-COMMISSIONING,S20 7HZ
Department of Health,NHS Sheffield CCG,2/29/2020,C&M-GMS Cost of Drugs -Prescribing,LOCAL ENHANCED SERVICES,MILL ROAD SURGERY SHEFFIELD,31201500,"2,267.70",LOCAL ENHANCED SERVICES,S35 9XQ
Department of Health,NHS Sheffield CCG,2/29/2020,C&M-GMS DES Learn Dsblty Hlth Chk,PRC DELEGATED CO-COMMISSIONING,MILL ROAD SURGERY SHEFFIELD,31201500,420.00,PRC DELEGATED CO-COMMISSIONING,S35 9XQ
Department of Health,NHS Sheffield CCG,2/29/2020,C&M-GMS DES Minor Surgery,PRC DELEGATED CO-COMMISSIONING,MILL ROAD SURGERY SHEFFIELD,31201500,"1,185.00",PRC DELEGATED CO-COMMISSIONING,S35 9XQ
Department of Health,NHS Sheffield CCG,2/29/2020,C&M-GMS Global Sum,PRC DELEGATED CO-COMMISSIONING,MILL ROAD SURGERY SHEFFIELD,31201500,"40,567.83",PRC DELEGATED CO-COMMISSIONING,S35 9XQ
Department of Health,NHS Sheffield CCG,2/29/2020,C&M-GMS MPIG Correction Factor,PRC DELEGATED CO-COMMISSIONING,MILL ROAD SURGERY SHEFFIELD,31201500,61.02,PRC DELEGATED CO-COMMISSIONING,S35 9XQ
Department of Health,NHS Sheffield CCG,2/29/2020,C&M-GMS PCN DES Participation,PRC DELEGATED CO-COMMISSIONING,MILL ROAD SURGERY SHEFFIELD,31201500,842.44,PRC DELEGATED CO-COMMISSIONING,S35 9XQ
Department of Health,NHS Sheffield CCG,2/29/2020,C&M-GMS Prem Notional Rent,PRC DELEGATED CO-COMMISSIONING,MILL ROAD SURGERY SHEFFIELD,31201500,"4,593.33",PRC DELEGATED CO-COMMISSIONING,S35 9XQ
Department of Health,NHS Sheffield CCG,2/29/2020,C&M-GMS Prof Fees Prescribing,PRC DELEGATED CO-COMMISSIONING,MILL ROAD SURGERY SHEFFIELD,31201500,295.87,PRC DELEGATED CO-COMMISSIONING,S35 9XQ
Department of Health,NHS Sheffield CCG,2/29/2020,C&M-GMS QOF Aspiration,PRC DELEGATED CO-COMMISSIONING,MILL ROAD SURGERY SHEFFIELD,31201500,"5,088.50",PRC DELEGATED CO-COMMISSIONING,S35 9XQ
Department of Health,NHS Sheffield CCG,2/29/2020,Clinical&Medical-Independent Sector,Mental Health Services - S117 Mental Health,MOORVILLE RESIDENTIAL,31000511,"19,432.61",Mental Health Services - S117 Mental Health,S10 5FA
Department of Health,NHS Sheffield CCG,2/29/2020,Cont Care-Learning Disab(<65),CHC ADULT FULLY FUNDED,MOORVILLE RESIDENTIAL,31000511,"8,558.77",CHC ADULT FULLY FUNDED,S10 5FA
Department of Health,NHS Sheffield CCG,2/29/2020,Cont Care-Learning Disab(<65),CHC ADULT JOINT FUNDED,MOORVILLE RESIDENTIAL,31000511,"3,765.07",CHC ADULT JOINT FUNDED,S10 5FA
Department of Health,NHS Sheffield CCG,2/29/2020,Cont Care-Mental Health (<65),CHC ADULT JOINT FUNDED,MOORVILLE RESIDENTIAL,31000511,459.94,CHC ADULT JOINT FUNDED,S10 5FA
Department of Health,NHS Sheffield CCG,2/29/2020,C&M-PMS Contract Value,PRC DELEGATED CO-COMMISSIONING,MOSBOROUGH HEALTH CENTRE,30986699,"50,263.61",PRC DELEGATED CO-COMMISSIONING,S20 5BQ
Department of Health,NHS Sheffield CCG,2/29/2020,C&M-PMS DES Learn Dsblty Hlth Chk,PRC DELEGATED CO-COMMISSIONING,MOSBOROUGH HEALTH CENTRE,30986699,560.00,PRC DELEGATED CO-COMMISSIONING,S20 5BQ
Department of Health,NHS Sheffield CCG,2/29/2020,C&M-PMS Out of Hours Opt Outs,PRC DELEGATED CO-COMMISSIONING,MOSBOROUGH HEALTH CENTRE,30986699,10.68,PRC DELEGATED CO-COMMISSIONING,S20 5BQ
Department of Health,NHS Sheffield CCG,2/29/2020,C&M-PMS PCN DES Participation,PRC DELEGATED CO-COMMISSIONING,MOSBOROUGH HEALTH CENTRE,30986699,927.38,PRC DELEGATED CO-COMMISSIONING,S20 5BQ
Department of Health,NHS Sheffield CCG,2/29/2020,C&M-PMS Prem Notional Rent,PRC DELEGATED CO-COMMISSIONING,MOSBOROUGH HEALTH CENTRE,30986699,"4,091.67",PRC DELEGATED CO-COMMISSIONING,S20 5BQ
Department of Health,NHS Sheffield CCG,2/29/2020,C&M-PMS Prem Water Rates,PRC DELEGATED CO-COMMISSIONING,MOSBOROUGH HEALTH CENTRE,30986699,212.12,PRC DELEGATED CO-COMMISSIONING,S20 5BQ
Department of Health,NHS Sheffield CCG,2/29/2020,C&M-PMS QOF Aspiration,PRC DELEGATED CO-COMMISSIONING,MOSBOROUGH HEALTH CENTRE,30986699,"5,736.56",PRC DELEGATED CO-COMMISSIONING,S20 5BQ
Department of Health,NHS Sheffield CCG,2/29/2020,C&M-PMS Contract Value,PRC DELEGATED CO-COMMISSIONING,NETHERGREEN SURGERY,30986701,"63,791.23",PRC DELEGATED CO-COMMISSIONING,S11 7EJ
Department of Health,NHS Sheffield CCG,2/29/2020,C&M-PMS Out of Hours Opt Outs,PRC DELEGATED CO-COMMISSIONING,NETHERGREEN SURGERY,30986701,38.71,PRC DELEGATED CO-COMMISSIONING,S11 7EJ
Department of Health,NHS Sheffield CCG,2/29/2020,C&M-PMS PCN DES Participation,PRC DELEGATED CO-COMMISSIONING,NETHERGREEN SURGERY,30986701,"1,208.31",PRC DELEGATED CO-COMMISSIONING,S11 7EJ
Department of Health,NHS Sheffield CCG,2/29/2020,C&M-PMS Prem Cost Rent,PRC DELEGATED CO-COMMISSIONING,NETHERGREEN SURGERY,30986701,"5,057.33",PRC DELEGATED CO-COMMISSIONING,S11 7EJ
Department of Health,NHS Sheffield CCG,2/29/2020,C&M-PMS Prem Water Rates,PRC DELEGATED CO-COMMISSIONING,NETHERGREEN SURGERY,30986701,298.39,PRC DELEGATED CO-COMMISSIONING,S11 7EJ
Department of Health,NHS Sheffield CCG,2/29/2020,C&M-PMS QOF Aspiration,PRC DELEGATED CO-COMMISSIONING,NETHERGREEN SURGERY,30986701,"6,406.79",PRC DELEGATED CO-COMMISSIONING,S11 7EJ
Department of Health,NHS Sheffield CCG,2/29/2020,External Consultancy Fees,BEREAVEMENT SERVICE,NHS DONCASTER CCG,31260414,"40,000.00",BASIC SALARY RECHARGES TO FROM NHS,WF3 1WE
Department of Health,NHS Sheffield CCG,2/29/2020,Charges from CSU,BUSINESS INFORMATICS,NHS NORTH OF ENGLAND CSU,30899160,"27,376.00",NHS CCG INCOME - SLA 44811016,WF3 1WE
Department of Health,NHS Sheffield CCG,2/29/2020,Charges from CSU,BUSINESS INFORMATICS,NHS NORTH OF ENGLAND CSU,31187883,"27,376.00",NHS CCG INCOME - SLA 44811016,WF3 1WE
Department of Health,NHS Sheffield CCG,2/29/2020,C&M-GMS Cost of Drugs -Prescribing,LOCAL ENHANCED SERVICES,NORFOLK PARK HEALTH CENTRE,31201505,933.68,LOCAL ENHANCED SERVICES,S2 3TA
Department of Health,NHS Sheffield CCG,2/29/2020,C&M-GMS DES Learn Dsblty Hlth Chk,PRC DELEGATED CO-COMMISSIONING,NORFOLK PARK HEALTH CENTRE,31201505,"1,540.00",PRC DELEGATED CO-COMMISSIONING,S2 3TA
Department of Health,NHS Sheffield CCG,2/29/2020,C&M-GMS DES Minor Surgery,PRC DELEGATED CO-COMMISSIONING,NORFOLK PARK HEALTH CENTRE,31201505,340.00,PRC DELEGATED CO-COMMISSIONING,S2 3TA
Department of Health,NHS Sheffield CCG,2/29/2020,C&M-GMS Global Sum,PRC DELEGATED CO-COMMISSIONING,NORFOLK PARK HEALTH CENTRE,31201505,"39,830.85",PRC DELEGATED CO-COMMISSIONING,S2 3TA
Department of Health,NHS Sheffield CCG,2/29/2020,C&M-GMS MPIG Correction Factor,PRC DELEGATED CO-COMMISSIONING,NORFOLK PARK HEALTH CENTRE,31201505,462.30,PRC DELEGATED CO-COMMISSIONING,S2 3TA
Department of Health,NHS Sheffield CCG,2/29/2020,C&M-GMS PCN DES Participation,PRC DELEGATED CO-COMMISSIONING,NORFOLK PARK HEALTH CENTRE,31201505,763.41,PRC DELEGATED CO-COMMISSIONING,S2 3TA
Department of Health,NHS Sheffield CCG,2/29/2020,C&M-GMS Prem Healthcentre Rent,PRC DELEGATED CO-COMMISSIONING,NORFOLK PARK HEALTH CENTRE,31201505,"24,820.01",PRC DELEGATED CO-COMMISSIONING,S2 3TA
Department of Health,NHS Sheffield CCG,2/29/2020,C&M-GMS Prof Fees Prescribing,PRC DELEGATED CO-COMMISSIONING,NORFOLK PARK HEALTH CENTRE,31201505,177.94,PRC DELEGATED CO-COMMISSIONING,S2 3TA
Department of Health,NHS Sheffield CCG,2/29/2020,C&M-GMS QOF Aspiration,PRC DELEGATED CO-COMMISSIONING,NORFOLK PARK HEALTH CENTRE,31201505,"3,941.29",PRC DELEGATED CO-COMMISSIONING,S2 3TA
Department of Health,NHS Sheffield CCG,2/29/2020,C&M-GMS Cost of Drugs -Prescribing,LOCAL ENHANCED SERVICES,NORWOOD MEDICAL CENTRE SHEFFIELD,31201508,618.65,LOCAL ENHANCED SERVICES,S5 7HD
Department of Health,NHS Sheffield CCG,2/29/2020,C&M-GMS DES Learn Dsblty Hlth Chk,PRC DELEGATED CO-COMMISSIONING,NORWOOD MEDICAL CENTRE SHEFFIELD,31201508,840.00,PRC DELEGATED CO-COMMISSIONING,S5 7HD
Department of Health,NHS Sheffield CCG,2/29/2020,C&M-GMS DES Minor Surgery,PRC DELEGATED CO-COMMISSIONING,NORWOOD MEDICAL CENTRE SHEFFIELD,31201508,"1,600.00",PRC DELEGATED CO-COMMISSIONING,S5 7HD
Department of Health,NHS Sheffield CCG,2/29/2020,C&M-GMS Global Sum,PRC DELEGATED CO-COMMISSIONING,NORWOOD MEDICAL CENTRE SHEFFIELD,31201508,"65,363.97",PRC DELEGATED CO-COMMISSIONING,S5 7HD
Department of Health,NHS Sheffield CCG,2/29/2020,C&M-GMS PCN DES Participation,PRC DELEGATED CO-COMMISSIONING,NORWOOD MEDICAL CENTRE SHEFFIELD,31201508,"1,337.61",PRC DELEGATED CO-COMMISSIONING,S5 7HD
Department of Health,NHS Sheffield CCG,2/29/2020,C&M-GMS PCO Locum Adop/Pat/Mat,PRC DELEGATED CO-COMMISSIONING,NORWOOD MEDICAL CENTRE SHEFFIELD,31201508,"26,210.88",PRC DELEGATED CO-COMMISSIONING,S5 7HD
Department of Health,NHS Sheffield CCG,2/29/2020,C&M-GMS Prem Notional Rent,PRC DELEGATED CO-COMMISSIONING,NORWOOD MEDICAL CENTRE SHEFFIELD,31201508,"5,187.50",PRC DELEGATED CO-COMMISSIONING,S5 7HD
Department of Health,NHS Sheffield CCG,2/29/2020,C&M-GMS Prof Fees Prescribing,PRC DELEGATED CO-COMMISSIONING,NORWOOD MEDICAL CENTRE SHEFFIELD,31201508,122.09,PRC DELEGATED CO-COMMISSIONING,S5 7HD
Department of Health,NHS Sheffield CCG,2/29/2020,C&M-GMS QOF Aspiration,PRC DELEGATED CO-COMMISSIONING,NORWOOD MEDICAL CENTRE SHEFFIELD,31201508,"8,171.17",PRC DELEGATED CO-COMMISSIONING,S5 7HD
Department of Health,NHS Sheffield CCG,2/29/2020,Clinical&Medical-Independent Sector,ACUTE COMMISSIONING,ONEHEALTH GROUP,31000534,"71,286.25",https://nww.einvoice-prod.sbs.nhs.uk:8179/invoicepdf/66a2b047-4ca0-5b93-8765-d60ca515eb4d,S11 8UX
Department of Health,NHS Sheffield CCG,2/29/2020,C&M-GMS Cost of Drugs -Dispensing,LOCAL ENHANCED SERVICES,OUGHTIBRIDGE SURGERY,31201512,"30,510.18",LOCAL ENHANCED SERVICES,S35 0FW
Department of Health,NHS Sheffield CCG,2/29/2020,C&M-GMS DES Minor Surgery,PRC DELEGATED CO-COMMISSIONING,OUGHTIBRIDGE SURGERY,31201512,520.00,PRC DELEGATED CO-COMMISSIONING,S35 0FW
Department of Health,NHS Sheffield CCG,2/29/2020,C&M-GMS Global Sum,PRC DELEGATED CO-COMMISSIONING,OUGHTIBRIDGE SURGERY,31201512,"43,420.45",PRC DELEGATED CO-COMMISSIONING,S35 0FW
Department of Health,NHS Sheffield CCG,2/29/2020,C&M-GMS PCN DES Participation,PRC DELEGATED CO-COMMISSIONING,OUGHTIBRIDGE SURGERY,31201512,889.02,PRC DELEGATED CO-COMMISSIONING,S35 0FW
Department of Health,NHS Sheffield CCG,2/29/2020,C&M-GMS Prem Notional Rent,PRC DELEGATED CO-COMMISSIONING,OUGHTIBRIDGE SURGERY,31201512,"3,957.33",PRC DELEGATED CO-COMMISSIONING,S35 0FW
Department of Health,NHS Sheffield CCG,2/29/2020,C&M-GMS Prem Water Rates,PRC DELEGATED CO-COMMISSIONING,OUGHTIBRIDGE SURGERY,31201512,216.54,PRC DELEGATED CO-COMMISSIONING,S35 0FW
Department of Health,NHS Sheffield CCG,2/29/2020,C&M-GMS Prof Fees Dispensing,PRC DELEGATED CO-COMMISSIONING,OUGHTIBRIDGE SURGERY,31201512,"4,177.91",PRC DELEGATED CO-COMMISSIONING,S35 0FW
Department of Health,NHS Sheffield CCG,2/29/2020,C&M-GMS PrscrptnChrgsColl&RmttdbyGP,LOCAL ENHANCED SERVICES,OUGHTIBRIDGE SURGERY,31201512,567.00,LOCAL ENHANCED SERVICES,S35 0FW
Department of Health,NHS Sheffield CCG,2/29/2020,C&M-GMS QOF Aspiration,PRC DELEGATED CO-COMMISSIONING,OUGHTIBRIDGE SURGERY,31201512,"4,261.60",PRC DELEGATED CO-COMMISSIONING,S35 0FW
Department of Health,NHS Sheffield CCG,2/29/2020,C&M-PMS Contract Value,PRC DELEGATED CO-COMMISSIONING,OWLTHORPE MEDICAL CENTRE,30986703,"33,441.80",PRC DELEGATED CO-COMMISSIONING,S20 6PD
Department of Health,NHS Sheffield CCG,2/29/2020,C&M-PMS Out of Hours Opt Outs,PRC DELEGATED CO-COMMISSIONING,OWLTHORPE MEDICAL CENTRE,30986703,35.09,PRC DELEGATED CO-COMMISSIONING,S20 6PD
Department of Health,NHS Sheffield CCG,2/29/2020,C&M-PMS PCN DES Participation,PRC DELEGATED CO-COMMISSIONING,OWLTHORPE MEDICAL CENTRE,30986703,639.06,PRC DELEGATED CO-COMMISSIONING,S20 6PD
Department of Health,NHS Sheffield CCG,2/29/2020,C&M-PMS PCO Locum Adop/Pat/Mat,PRC DELEGATED CO-COMMISSIONING,OWLTHORPE MEDICAL CENTRE,30986703,"9,341.13",PRC DELEGATED CO-COMMISSIONING,S20 6PD
Department of Health,NHS Sheffield CCG,2/29/2020,C&M-PMS Prem Actual Rent,PRC DELEGATED CO-COMMISSIONING,OWLTHORPE MEDICAL CENTRE,30986703,"7,539.58",PRC DELEGATED CO-COMMISSIONING,S20 6PD
Department of Health,NHS Sheffield CCG,2/29/2020,C&M-PMS QOF Aspiration,PRC DELEGATED CO-COMMISSIONING,OWLTHORPE MEDICAL CENTRE,30986703,"3,873.48",PRC DELEGATED CO-COMMISSIONING,S20 6PD
Department of Health,NHS Sheffield CCG,2/29/2020,C&M-PMS Contract Value,PRC DELEGATED CO-COMMISSIONING,PAGE HALL MEDICAL CENTRE,30986705,"58,884.52",PRC DELEGATED CO-COMMISSIONING,S4 8GB
Department of Health,NHS Sheffield CCG,2/29/2020,C&M-PMS Out of Hours Opt Outs,PRC DELEGATED CO-COMMISSIONING,PAGE HALL MEDICAL CENTRE,30986705,20.84,PRC DELEGATED CO-COMMISSIONING,S4 8GB
Department of Health,NHS Sheffield CCG,2/29/2020,C&M-PMS PCN DES Participation,PRC DELEGATED CO-COMMISSIONING,PAGE HALL MEDICAL CENTRE,30986705,"1,083.01",PRC DELEGATED CO-COMMISSIONING,S4 8GB
Department of Health,NHS Sheffield CCG,2/29/2020,C&M-PMS Prem Notional Rent,PRC DELEGATED CO-COMMISSIONING,PAGE HALL MEDICAL CENTRE,30986705,"4,833.33",PRC DELEGATED CO-COMMISSIONING,S4 8GB
Department of Health,NHS Sheffield CCG,2/29/2020,C&M-PMS QOF Aspiration,PRC DELEGATED CO-COMMISSIONING,PAGE HALL MEDICAL CENTRE,30986705,"4,558.05",PRC DELEGATED CO-COMMISSIONING,S4 8GB
Department of Health,NHS Sheffield CCG,2/29/2020,C&M-PMS Contract Value,PRC DELEGATED CO-COMMISSIONING,PORTER BROOK MEDICAL CENTRE,30986706,"-10,188.57",PRC DELEGATED CO-COMMISSIONING,S11 8HN
Department of Health,NHS Sheffield CCG,2/29/2020,C&M-PMS GP Statutory Levy,PRC DELEGATED CO-COMMISSIONING,PORTER BROOK MEDICAL CENTRE,30986706,-989.17,PRC DELEGATED CO-COMMISSIONING,S11 8HN
Department of Health,NHS Sheffield CCG,2/29/2020,C&M-PMS Out of Hours Opt Outs,PRC DELEGATED CO-COMMISSIONING,PORTER BROOK MEDICAL CENTRE,30986706,"-8,210.37",PRC DELEGATED CO-COMMISSIONING,S11 8HN
Department of Health,NHS Sheffield CCG,2/29/2020,C&M-PMS Contract Value,PRC DELEGATED CO-COMMISSIONING,PORTER BROOK MEDICAL CENTRE,30986707,"176,064.97",PRC DELEGATED CO-COMMISSIONING,S11 8HN
Department of Health,NHS Sheffield CCG,2/29/2020,C&M-PMS Out of Hours Opt Outs,PRC DELEGATED CO-COMMISSIONING,PORTER BROOK MEDICAL CENTRE,30986707,475.39,PRC DELEGATED CO-COMMISSIONING,S11 8HN
Department of Health,NHS Sheffield CCG,2/29/2020,C&M-PMS PCN DES Participation,PRC DELEGATED CO-COMMISSIONING,PORTER BROOK MEDICAL CENTRE,30986707,"3,163.47",PRC DELEGATED CO-COMMISSIONING,S11 8HN
Department of Health,NHS Sheffield CCG,2/29/2020,C&M-PMS Prem Actual Rent,PRC DELEGATED CO-COMMISSIONING,PORTER BROOK MEDICAL CENTRE,30986707,"1,666.66",PRC DELEGATED CO-COMMISSIONING,S11 8HN
Department of Health,NHS Sheffield CCG,2/29/2020,C&M-PMS Prem Notional Rent,PRC DELEGATED CO-COMMISSIONING,PORTER BROOK MEDICAL CENTRE,30986707,"9,666.67",PRC DELEGATED CO-COMMISSIONING,S11 8HN
Department of Health,NHS Sheffield CCG,2/29/2020,C&M-PMS QOF Aspiration,PRC DELEGATED CO-COMMISSIONING,PORTER BROOK MEDICAL CENTRE,30986707,"8,838.31",PRC DELEGATED CO-COMMISSIONING,S11 8HN
Department of Health,NHS Sheffield CCG,2/29/2020,Clinical&Medical-Commercial Sector,PATIENT TRANSPORT,PREMIER CARE DIRECT LTD,30953533,"112,480.55",https://nww.einvoice-prod.sbs.nhs.uk:8179/invoicepdf/912d2e71-2bfa-5a9b-b618-690af37022a6,DN4 5NU
Department of Health,NHS Sheffield CCG,2/29/2020,Other Gen Supplies & Srv,BEREAVEMENT SERVICE,PRIMARY CARE DONCASTER LTD,31274383,"265,000.00",BEREAVEMENT SERVICE,DN1 2DJ
Department of Health,NHS Sheffield CCG,2/29/2020,C&M-GMS LES Basket of Procedures,LOCAL ENHANCED SERVICES,PRIMARY CARE SHEFFIELD LTD,31149694,"52,308.33",LOCAL ENHANCED SERVICES,S9 4EU
Department of Health,NHS Sheffield CCG,2/29/2020,C&M-APMS DES Extended Hours Access,GP FORWARD VIEW,PRIMARY CARE SHEFFIELD LTD,31216603,"295,941.67",GP FORWARD VIEW,S9 4EU
Department of Health,NHS Sheffield CCG,2/29/2020,C&M-OES Childrens Schemes,LOCAL ENHANCED SERVICES,PRIMARY EYECARE SERVICES LTD,31216392,975.00,LOCAL ENHANCED SERVICES,EC1R 0DG
Department of Health,NHS Sheffield CCG,2/29/2020,C&M-OES Glaucoma,LOCAL ENHANCED SERVICES,PRIMARY EYECARE SERVICES LTD,31216392,790.00,LOCAL ENHANCED SERVICES,EC1R 0DG
Department of Health,NHS Sheffield CCG,2/29/2020,C&M-OES Intra-ocular Ocular Hypertn,LOCAL ENHANCED SERVICES,PRIMARY EYECARE SERVICES LTD,31216392,260.00,LOCAL ENHANCED SERVICES,EC1R 0DG
Department of Health,NHS Sheffield CCG,2/29/2020,C&M-OES PEARS,LOCAL ENHANCED SERVICES,PRIMARY EYECARE SERVICES LTD,31216392,"29,933.50",LOCAL ENHANCED SERVICES,EC1R 0DG
Department of Health,NHS Sheffield CCG,2/29/2020,C&M-PMS Contract Value,PRC DELEGATED CO-COMMISSIONING,RICHMOND MEDICAL CENTRE,30986709,"67,613.83",PRC DELEGATED CO-COMMISSIONING,S13 8NA
Department of Health,NHS Sheffield CCG,2/29/2020,C&M-PMS Out of Hours Opt Outs,PRC DELEGATED CO-COMMISSIONING,RICHMOND MEDICAL CENTRE,30986709,62.96,PRC DELEGATED CO-COMMISSIONING,S13 8NA
Department of Health,NHS Sheffield CCG,2/29/2020,C&M-PMS PCN DES Participation,PRC DELEGATED CO-COMMISSIONING,RICHMOND MEDICAL CENTRE,30986709,"1,271.70",PRC DELEGATED CO-COMMISSIONING,S13 8NA
Department of Health,NHS Sheffield CCG,2/29/2020,C&M-PMS Prem Notional Rent,PRC DELEGATED CO-COMMISSIONING,RICHMOND MEDICAL CENTRE,30986709,"4,731.00",PRC DELEGATED CO-COMMISSIONING,S13 8NA
Department of Health,NHS Sheffield CCG,2/29/2020,C&M-PMS QOF Aspiration,PRC DELEGATED CO-COMMISSIONING,RICHMOND MEDICAL CENTRE,30986709,"8,208.20",PRC DELEGATED CO-COMMISSIONING,S13 8NA
Department of Health,NHS Sheffield CCG,2/29/2020,Cont Care-Funded Nursing Care Allow,FUNDED NURSING CARE,ROSEBERRY CARE CENTRES,31037685,"31,120.33",FUNDED NURSING CARE,S5 6AB
Department of Health,NHS Sheffield CCG,2/29/2020,Cont Care-Physical Disab (<65),CHC ADULT FULLY FUNDED,ROSEBERRY CARE CENTRES,31037755,"30,414.15",CHC ADULT FULLY FUNDED,S4 7AJ
Department of Health,NHS Sheffield CCG,2/29/2020,Hcare Srv Rec Fdtn Trust-Contract Baseline,MENTAL HEALTH CONTRACTS,ROTHERHAM DONCASTER AND SOUTH HUMBER NHS FOUNDATION TRUST,31124388,"25,487.95",MENTAL HEALTH CONTRACTS,DN4 8QN
Department of Health,NHS Sheffield CCG,2/29/2020,Hcare Srv Rec Fdtn Trust-Contract Baseline,ACUTE COMMISSIONING,ROTHERHAM NHS FOUNDATION TRUST,30899132,"-145,629.00",ACUTE COMMISSIONING,S60 2UD
Department of Health,NHS Sheffield CCG,2/29/2020,Hcare Srv Rec Fdtn Trust-Contract Baseline,ACUTE COMMISSIONING,ROTHERHAM NHS FOUNDATION TRUST,30899135,"469,548.00",ACUTE COMMISSIONING,S60 2UD
Department of Health,NHS Sheffield CCG,2/29/2020,Hcare Srv Rec Fdtn Trust-Contract Baseline,ACUTE COMMISSIONING,ROTHERHAM NHS FOUNDATION TRUST,30899178,"466,729.00",ACUTE COMMISSIONING,S60 2UD
Department of Health,NHS Sheffield CCG,2/29/2020,Clinical&Medical-Serv Recd-F Trsts,BEREAVEMENT SERVICE,ROTHERHAM NHS FOUNDATION TRUST,30953575,"179,521.20",BEREAVEMENT SERVICE,S60 2UD
Department of Health,NHS Sheffield CCG,2/29/2020,Miscellaneous Expenditure (L9),BEREAVEMENT SERVICE,ROTHERHAM NHS FOUNDATION TRUST,31000515,"42,000.00",BEREAVEMENT SERVICE,S60 2UD
Department of Health,NHS Sheffield CCG,2/29/2020,C&M-PMS Contract Value,PRC DELEGATED CO-COMMISSIONING,RUSTLINGS ROAD MEDICAL CENTRE,30986713,"28,425.84",PRC DELEGATED CO-COMMISSIONING,S11 7AB
Department of Health,NHS Sheffield CCG,2/29/2020,C&M-PMS Out of Hours Opt Outs,PRC DELEGATED CO-COMMISSIONING,RUSTLINGS ROAD MEDICAL CENTRE,30986713,20.52,PRC DELEGATED CO-COMMISSIONING,S11 7AB
Department of Health,NHS Sheffield CCG,2/29/2020,C&M-PMS PCN DES Participation,PRC DELEGATED CO-COMMISSIONING,RUSTLINGS ROAD MEDICAL CENTRE,30986713,527.62,PRC DELEGATED CO-COMMISSIONING,S11 7AB
Department of Health,NHS Sheffield CCG,2/29/2020,C&M-PMS Prem Notional Rent,PRC DELEGATED CO-COMMISSIONING,RUSTLINGS ROAD MEDICAL CENTRE,30986713,"1,312.50",PRC DELEGATED CO-COMMISSIONING,S11 7AB
Department of Health,NHS Sheffield CCG,2/29/2020,C&M-PMS QOF Aspiration,PRC DELEGATED CO-COMMISSIONING,RUSTLINGS ROAD MEDICAL CENTRE,30986713,"2,653.37",PRC DELEGATED CO-COMMISSIONING,S11 7AB
Department of Health,NHS Sheffield CCG,2/29/2020,C&M-PMS Contract Value,PRC DELEGATED CO-COMMISSIONING,SELBORNE ROAD MEDICAL CENTRE,30986711,"19,844.72",PRC DELEGATED CO-COMMISSIONING,S10 5ND
Department of Health,NHS Sheffield CCG,2/29/2020,C&M-PMS DES Learn Dsblty Hlth Chk,PRC DELEGATED CO-COMMISSIONING,SELBORNE ROAD MEDICAL CENTRE,30986711,"1,400.00",PRC DELEGATED CO-COMMISSIONING,S10 5ND
Department of Health,NHS Sheffield CCG,2/29/2020,C&M-PMS Out of Hours Opt Outs,PRC DELEGATED CO-COMMISSIONING,SELBORNE ROAD MEDICAL CENTRE,30986711,31.86,PRC DELEGATED CO-COMMISSIONING,S10 5ND
Department of Health,NHS Sheffield CCG,2/29/2020,C&M-PMS PCN DES Participation,PRC DELEGATED CO-COMMISSIONING,SELBORNE ROAD MEDICAL CENTRE,30986711,369.86,PRC DELEGATED CO-COMMISSIONING,S10 5ND
Department of Health,NHS Sheffield CCG,2/29/2020,C&M-PMS Prem Notional Rent,PRC DELEGATED CO-COMMISSIONING,SELBORNE ROAD MEDICAL CENTRE,30986711,"1,735.42",PRC DELEGATED CO-COMMISSIONING,S10 5ND
Department of Health,NHS Sheffield CCG,2/29/2020,C&M-PMS QOF Aspiration,PRC DELEGATED CO-COMMISSIONING,SELBORNE ROAD MEDICAL CENTRE,30986711,"1,995.11",PRC DELEGATED CO-COMMISSIONING,S10 5ND
Department of Health,NHS Sheffield CCG,2/29/2020,Cont Care-Physical Disab (<65),CHC ADULT FULLY FUNDED,SEVEN HILLS NURSING HOME,31037931,"31,078.46",CHC ADULT FULLY FUNDED,S11 9AA
Department of Health,NHS Sheffield CCG,2/29/2020,C&M-GMS Cost of Drugs -Prescribing,LOCAL ENHANCED SERVICES,SHARROW LANE MEDICAL CENTRE,31201516,883.36,LOCAL ENHANCED SERVICES,S11 8AN
Department of Health,NHS Sheffield CCG,2/29/2020,C&M-GMS DES Minor Surgery,PRC DELEGATED CO-COMMISSIONING,SHARROW LANE MEDICAL CENTRE,31201516,360.00,PRC DELEGATED CO-COMMISSIONING,S11 8AN
Department of Health,NHS Sheffield CCG,2/29/2020,C&M-GMS Global Sum,PRC DELEGATED CO-COMMISSIONING,SHARROW LANE MEDICAL CENTRE,31201516,"23,764.52",PRC DELEGATED CO-COMMISSIONING,S11 8AN
Department of Health,NHS Sheffield CCG,2/29/2020,C&M-GMS MPIG Correction Factor,PRC DELEGATED CO-COMMISSIONING,SHARROW LANE MEDICAL CENTRE,31201516,980.16,PRC DELEGATED CO-COMMISSIONING,S11 8AN
Department of Health,NHS Sheffield CCG,2/29/2020,C&M-GMS PCN DES Participation,PRC DELEGATED CO-COMMISSIONING,SHARROW LANE MEDICAL CENTRE,31201516,481.39,PRC DELEGATED CO-COMMISSIONING,S11 8AN
Department of Health,NHS Sheffield CCG,2/29/2020,C&M-GMS Prem Notional Rent,PRC DELEGATED CO-COMMISSIONING,SHARROW LANE MEDICAL CENTRE,31201516,"2,741.67",PRC DELEGATED CO-COMMISSIONING,S11 8AN
Department of Health,NHS Sheffield CCG,2/29/2020,C&M-GMS Prof Fees Prescribing,PRC DELEGATED CO-COMMISSIONING,SHARROW LANE MEDICAL CENTRE,31201516,153.11,PRC DELEGATED CO-COMMISSIONING,S11 8AN
Department of Health,NHS Sheffield CCG,2/29/2020,C&M-GMS QOF Aspiration,PRC DELEGATED CO-COMMISSIONING,SHARROW LANE MEDICAL CENTRE,31201516,"2,666.85",PRC DELEGATED CO-COMMISSIONING,S11 8AN
Department of Health,NHS Sheffield CCG,2/29/2020,Hcare Srv Rec Fdtn Trust-Contract Baseline,ACUTE CHILDRENS SERVICES,SHEFFIELD CHILDRENS NHS FOUNDATION TRUST,31023705,"-104,890.24",https://nww.einvoice-prod.sbs.nhs.uk:8179/invoicepdf/81202b7f-10d8-59fe-8fe6-b65ef2e2475f,S10 2TH
Department of Health,NHS Sheffield CCG,2/29/2020,Hcare Srv Rec Fdtn Trust-Contract Baseline,ACUTE CHILDRENS SERVICES,SHEFFIELD CHILDRENS NHS FOUNDATION TRUST,31149666,"3,387,974.00",https://nww.einvoice-prod.sbs.nhs.uk:8179/invoicepdf/fae5831e-18f0-52a8-837a-423b4c5f15b0,S10 2TH
Department of Health,NHS Sheffield CCG,2/29/2020,Hcare Srv Rec Fdtn Trust-Contract Baseline,ACUTE CHILDRENS SERVICES,SHEFFIELD CHILDRENS NHS FOUNDATION TRUST,31149692,"798,438.00",https://nww.einvoice-prod.sbs.nhs.uk:8179/invoicepdf/a49b7bd0-c222-5c18-bccf-531f385ddead,S10 2TH
Department of Health,NHS Sheffield CCG,2/29/2020,Services From Local Authorities,MENTAL HEALTH SERVICES - COLLABORATIVE COMMISSIONING,SHEFFIELD CITY COUNCIL,30899146,"152,080.24",MENTAL HEALTH SERVICES - COLLABORATIVE COMMISSIONING,S1 2HH
Department of Health,NHS Sheffield CCG,2/29/2020,Services From Local Authorities,MENTAL HEALTH SERVICES - COLLABORATIVE COMMISSIONING,SHEFFIELD CITY COUNCIL,30899173,"-136,872.00",MENTAL HEALTH SERVICES - COLLABORATIVE COMMISSIONING,S1 2HH
Department of Health,NHS Sheffield CCG,2/29/2020,Cont Care-Physical Disab (<65),CHC ADULT FULLY FUNDED,SHEFFIELD CITY COUNCIL,30953709,"613,570.00",CHC ADULT FULLY FUNDED,S1 2HH
Department of Health,NHS Sheffield CCG,2/29/2020,Contract & Agency-Agency A & C,MENTAL HEALTH SERVICES - COLLABORATIVE COMMISSIONING,SHEFFIELD CITY COUNCIL,30970462,"33,256.00",133-413 Project Manager - secondment agreement funding,S1 2HH
Department of Health,NHS Sheffield CCG,2/29/2020,Contract & Agency-Agency A & C,MENTAL HEALTH SERVICES - COLLABORATIVE COMMISSIONING,SHEFFIELD CITY COUNCIL,30970462,"6,651.20",http://nww.docserv.wyss.nhs.uk/synergyiim/dist/?val=1574389_10961338_20200206123103,S1 2HH
Department of Health,NHS Sheffield CCG,2/29/2020,Clinical&Medical-Othe Public Sector,COMMUNITY SERVICES,SHEFFIELD CITY COUNCIL,31110598,"150,416.67",COMMUNITY SERVICES,S1 1UJ
Department of Health,NHS Sheffield CCG,2/29/2020,Clinical&Medical-Othe Public Sector,MENTAL HEALTH SERVICES - COLLABORATIVE COMMISSIONING,SHEFFIELD CITY COUNCIL,31110598,"83,669.08",MENTAL HEALTH SERVICES - COLLABORATIVE COMMISSIONING,S1 1UJ
Department of Health,NHS Sheffield CCG,2/29/2020,Clinical&Medical-Othe Public Sector,REABLEMENT,SHEFFIELD CITY COUNCIL,31110598,"21,830.67",REABLEMENT,S1 1UJ
Department of Health,NHS Sheffield CCG,2/29/2020,Clinical&Medical-Othe Public Sector,SAFEGUARDING,SHEFFIELD CITY COUNCIL,31110598,"12,234.75",SAFEGUARDING,S1 1UJ
Department of Health,NHS Sheffield CCG,2/29/2020,Cont Care-Physical Disab (65+),CHC ADULT FULLY FUNDED,SHEFFIELD CITY COUNCIL,31110598,"56,571.74",CHC ADULT FULLY FUNDED,S1 1UJ
Department of Health,NHS Sheffield CCG,2/29/2020,Soc Care-Joint H&C Teams/Working,INTERMEDIATE CARE,SHEFFIELD CITY COUNCIL,31110598,"151,447.58",INTERMEDIATE CARE,S1 1UJ
Department of Health,NHS Sheffield CCG,2/29/2020,Soc Care-Other Soc Care,COMMISSIONING - NON ACUTE,SHEFFIELD CITY COUNCIL,31110598,"1,467,750.00",COMMISSIONING - NON ACUTE,S1 1UJ
Department of Health,NHS Sheffield CCG,2/29/2020,Soc Care-Support Prim Care,COMMUNITY SERVICES,SHEFFIELD CITY COUNCIL,31110598,"59,501.34",COMMUNITY SERVICES,S1 1UJ
Department of Health,NHS Sheffield CCG,2/29/2020,Health Promotion,COMMISSIONING,SHEFFIELD CITY COUNCIL,31149705,"54,112.00",COMMISSIONING,S1 2HH
Department of Health,NHS Sheffield CCG,2/29/2020,Cont Care-Physical Disab (65+),CHC ADULT FULLY FUNDED,SHEFFIELD CITY COUNCIL,31216870,"908,807.03",CHC ADULT FULLY FUNDED,S1 1UJ
Department of Health,NHS Sheffield CCG,2/29/2020,Cont Care-NHSFT-Adult 100% Funded,CHC ADULT FULLY FUNDED,SHEFFIELD HEALTH & SOCIAL CARE NHS FOUNDATION TRUST,30899235,"188,035.86",CHC ADULT FULLY FUNDED,S10 3TH
Department of Health,NHS Sheffield CCG,2/29/2020,Hcare Srv Rec Fdtn Trust-Contract Baseline,MENTAL HEALTH CONTRACTS,SHEFFIELD HEALTH & SOCIAL CARE NHS FOUNDATION TRUST,31216567,"1,035,924.00",MENTAL HEALTH CONTRACTS,S10 3TH
Department of Health,NHS Sheffield CCG,2/29/2020,Hcare Srv Rec Fdtn Trust-Contract Baseline,MENTAL HEALTH CONTRACTS,SHEFFIELD HEALTH & SOCIAL CARE NHS FOUNDATION TRUST,31229866,"6,833,545.75",MENTAL HEALTH CONTRACTS,S10 3TH
Department of Health,NHS Sheffield CCG,2/29/2020,Hcare Srv Rec Fdtn Trust-Non Contract,MENTAL HEALTH CONTRACTS,SHEFFIELD HEALTH & SOCIAL CARE NHS FOUNDATION TRUST,31274378,"64,839.80",MENTAL HEALTH CONTRACTS,S10 3TH
Department of Health,NHS Sheffield CCG,2/29/2020,Oth Travel Costs-Car Mileage,BEREAVEMENT SERVICE,SHEFFIELD TEACHING HOSPITALS NHS FOUNDATION TRUST,30899172,873.01,BEREAVEMENT SERVICE,S5 7AU
Department of Health,NHS Sheffield CCG,2/29/2020,Oth Travel Costs-Car Mileage,REABLEMENT,SHEFFIELD TEACHING HOSPITALS NHS FOUNDATION TRUST,30899172,142.83,REABLEMENT,S5 7AU
Department of Health,NHS Sheffield CCG,2/29/2020,Seconded-Basic Sal-Staff fm oth org,BEREAVEMENT SERVICE,SHEFFIELD TEACHING HOSPITALS NHS FOUNDATION TRUST,30899172,"168,184.36",BEREAVEMENT SERVICE,S5 7AU
Department of Health,NHS Sheffield CCG,2/29/2020,Seconded-Basic Sal-Staff fm oth org,REABLEMENT,SHEFFIELD TEACHING HOSPITALS NHS FOUNDATION TRUST,30899172,"16,152.10",REABLEMENT,S5 7AU
Department of Health,NHS Sheffield CCG,2/29/2020,Seconded-Employer's NHI Costs,BEREAVEMENT SERVICE,SHEFFIELD TEACHING HOSPITALS NHS FOUNDATION TRUST,30899172,"21,417.32",BEREAVEMENT SERVICE,S5 7AU
Department of Health,NHS Sheffield CCG,2/29/2020,Seconded-Employer's NHI Costs,REABLEMENT,SHEFFIELD TEACHING HOSPITALS NHS FOUNDATION TRUST,30899172,"2,322.65",REABLEMENT,S5 7AU
Department of Health,NHS Sheffield CCG,2/29/2020,Clinical&Medical-Serv Recd-F Trsts,CLINICAL LEADS,SHEFFIELD TEACHING HOSPITALS NHS FOUNDATION TRUST,31086003,"34,557.00",Cancer Alliance: UGI CNS,S5 7AU
Department of Health,NHS Sheffield CCG,2/29/2020,Other Gen Supplies & Srv,CLINICAL LEADS,SHEFFIELD TEACHING HOSPITALS NHS FOUNDATION TRUST,31110590,"254,590.00",CLINICAL LEADS,S5 7AU
Department of Health,NHS Sheffield CCG,2/29/2020,Clinical&Medical-Serv Recd-F Trsts,CLINICAL LEADS,SHEFFIELD TEACHING HOSPITALS NHS FOUNDATION TRUST,31133485,"97,382.00","Cancer Alliance : STHFT Funding £97, 382 . Two band 7 info/cosd",S5 7AU
Department of Health,NHS Sheffield CCG,2/29/2020,Clinical&Medical-Serv Recd-F Trsts,CLINICAL LEADS,SHEFFIELD TEACHING HOSPITALS NHS FOUNDATION TRUST,31174413,"52,000.00",SYB & ND Cancer Alliance ITM funding for STHFT,S5 7AU
Department of Health,NHS Sheffield CCG,2/29/2020,Hcare Srv Rec Fdtn Trust-Contract Baseline,ACUTE COMMISSIONING,SHEFFIELD TEACHING HOSPITALS NHS FOUNDATION TRUST,31216702,"192,715.00",ACUTE COMMISSIONING,S5 7AU
Department of Health,NHS Sheffield CCG,2/29/2020,Hcare Srv Rec Fdtn Trust-Contract Baseline,ACUTE COMMISSIONING,SHEFFIELD TEACHING HOSPITALS NHS FOUNDATION TRUST,31216709,"3,898,717.00",ACUTE COMMISSIONING,S5 7AU
Department of Health,NHS Sheffield CCG,2/29/2020,Hcare Srv Rec Fdtn Trust-Contract Baseline,ACUTE COMMISSIONING,SHEFFIELD TEACHING HOSPITALS NHS FOUNDATION TRUST,31216713,"1,367,220.00",ACUTE COMMISSIONING,S5 7AU
Department of Health,NHS Sheffield CCG,2/29/2020,Hcare Srv Rec Fdtn Trust-Contract Baseline,ACUTE COMMISSIONING,SHEFFIELD TEACHING HOSPITALS NHS FOUNDATION TRUST,31216716,"30,408,062.00",ACUTE COMMISSIONING,S5 7AU
Department of Health,NHS Sheffield CCG,2/29/2020,Clinical&Medical-Serv Recd-F Trsts,CLINICAL LEADS,SHEFFIELD TEACHING HOSPITALS NHS FOUNDATION TRUST,31266313,"25,339.00",Cancer Alliance - CEA STHFT,S5 7AU
Department of Health,NHS Sheffield CCG,2/29/2020,Hcare Srv Rec Fdtn Trust-Non Contract,ACUTE COMMISSIONING,SHEFFIELD TEACHING HOSPITALS NHS FOUNDATION TRUST,31274335,"290,222.00",ACUTE COMMISSIONING,S5 7AU
Department of Health,NHS Sheffield CCG,2/29/2020,C&M-GMS Cost of Drugs -Prescribing,LOCAL ENHANCED SERVICES,SHIREGREEN MEDICAL CENTRE,31201523,"4,593.86",LOCAL ENHANCED SERVICES,S5 0RG
Department of Health,NHS Sheffield CCG,2/29/2020,C&M-GMS DES Minor Surgery,PRC DELEGATED CO-COMMISSIONING,SHIREGREEN MEDICAL CENTRE,31201523,280.00,PRC DELEGATED CO-COMMISSIONING,S5 0RG
Department of Health,NHS Sheffield CCG,2/29/2020,C&M-GMS Global Sum,PRC DELEGATED CO-COMMISSIONING,SHIREGREEN MEDICAL CENTRE,31201523,"58,191.33",PRC DELEGATED CO-COMMISSIONING,S5 0RG
Department of Health,NHS Sheffield CCG,2/29/2020,C&M-GMS MPIG Correction Factor,PRC DELEGATED CO-COMMISSIONING,SHIREGREEN MEDICAL CENTRE,31201523,226.84,PRC DELEGATED CO-COMMISSIONING,S5 0RG
Department of Health,NHS Sheffield CCG,2/29/2020,C&M-GMS PCN DES Participation,PRC DELEGATED CO-COMMISSIONING,SHIREGREEN MEDICAL CENTRE,31201523,"1,217.78",PRC DELEGATED CO-COMMISSIONING,S5 0RG
Department of Health,NHS Sheffield CCG,2/29/2020,C&M-GMS Prem Cost Rent,PRC DELEGATED CO-COMMISSIONING,SHIREGREEN MEDICAL CENTRE,31201523,"1,792.33",PRC DELEGATED CO-COMMISSIONING,S5 0RG
Department of Health,NHS Sheffield CCG,2/29/2020,C&M-GMS Prem Notional Rent,PRC DELEGATED CO-COMMISSIONING,SHIREGREEN MEDICAL CENTRE,31201523,"5,375.00",PRC DELEGATED CO-COMMISSIONING,S5 0RG
Department of Health,NHS Sheffield CCG,2/29/2020,C&M-GMS Prof Fees Prescribing,PRC DELEGATED CO-COMMISSIONING,SHIREGREEN MEDICAL CENTRE,31201523,875.19,PRC DELEGATED CO-COMMISSIONING,S5 0RG
Department of Health,NHS Sheffield CCG,2/29/2020,C&M-GMS QOF Aspiration,PRC DELEGATED CO-COMMISSIONING,SHIREGREEN MEDICAL CENTRE,31201523,"6,849.89",PRC DELEGATED CO-COMMISSIONING,S5 0RG
Department of Health,NHS Sheffield CCG,2/29/2020,C&M-PMS Contract Value,PRC DELEGATED CO-COMMISSIONING,SLOAN MEDICAL CENTRE,30986715,"96,073.77",PRC DELEGATED CO-COMMISSIONING,S8 0YH
Department of Health,NHS Sheffield CCG,2/29/2020,C&M-PMS DES Learn Dsblty Hlth Chk,PRC DELEGATED CO-COMMISSIONING,SLOAN MEDICAL CENTRE,30986715,"7,560.00",PRC DELEGATED CO-COMMISSIONING,S8 0YH
Department of Health,NHS Sheffield CCG,2/29/2020,C&M-PMS PCN DES Participation,PRC DELEGATED CO-COMMISSIONING,SLOAN MEDICAL CENTRE,30986715,"1,809.97",PRC DELEGATED CO-COMMISSIONING,S8 0YH
Department of Health,NHS Sheffield CCG,2/29/2020,C&M-PMS PCO Locum Adop/Pat/Mat,PRC DELEGATED CO-COMMISSIONING,SLOAN MEDICAL CENTRE,30986715,"7,061.67",PRC DELEGATED CO-COMMISSIONING,S8 0YH
Department of Health,NHS Sheffield CCG,2/29/2020,C&M-PMS Prem Actual Rent,PRC DELEGATED CO-COMMISSIONING,SLOAN MEDICAL CENTRE,30986715,"15,970.83",PRC DELEGATED CO-COMMISSIONING,S8 0YH
Department of Health,NHS Sheffield CCG,2/29/2020,C&M-PMS Prem Notional Rent,PRC DELEGATED CO-COMMISSIONING,SLOAN MEDICAL CENTRE,30986715,747.50,PRC DELEGATED CO-COMMISSIONING,S8 0YH
Department of Health,NHS Sheffield CCG,2/29/2020,C&M-PMS QOF Aspiration,PRC DELEGATED CO-COMMISSIONING,SLOAN MEDICAL CENTRE,30986715,"10,003.70",PRC DELEGATED CO-COMMISSIONING,S8 0YH
Department of Health,NHS Sheffield CCG,2/29/2020,C&M-PMS Contract Value,PRC DELEGATED CO-COMMISSIONING,SOTHALL MEDICAL CENTRE,30986717,"71,918.09",PRC DELEGATED CO-COMMISSIONING,S20 1HQ
Department of Health,NHS Sheffield CCG,2/29/2020,C&M-PMS DES Learn Dsblty Hlth Chk,PRC DELEGATED CO-COMMISSIONING,SOTHALL MEDICAL CENTRE,30986717,980.00,PRC DELEGATED CO-COMMISSIONING,S20 1HQ
Department of Health,NHS Sheffield CCG,2/29/2020,C&M-PMS Out of Hours Opt Outs,PRC DELEGATED CO-COMMISSIONING,SOTHALL MEDICAL CENTRE,30986717,48.08,PRC DELEGATED CO-COMMISSIONING,S20 1HQ
Department of Health,NHS Sheffield CCG,2/29/2020,C&M-PMS PCN DES Participation,PRC DELEGATED CO-COMMISSIONING,SOTHALL MEDICAL CENTRE,30986717,"1,351.91",PRC DELEGATED CO-COMMISSIONING,S20 1HQ
Department of Health,NHS Sheffield CCG,2/29/2020,C&M-PMS Prem Notional Rent,PRC DELEGATED CO-COMMISSIONING,SOTHALL MEDICAL CENTRE,30986717,"5,116.67",PRC DELEGATED CO-COMMISSIONING,S20 1HQ
Department of Health,NHS Sheffield CCG,2/29/2020,C&M-PMS Prem Water Rates,PRC DELEGATED CO-COMMISSIONING,SOTHALL MEDICAL CENTRE,30986717,136.01,PRC DELEGATED CO-COMMISSIONING,S20 1HQ
Department of Health,NHS Sheffield CCG,2/29/2020,C&M-PMS QOF Aspiration,PRC DELEGATED CO-COMMISSIONING,SOTHALL MEDICAL CENTRE,30986717,"8,630.52",PRC DELEGATED CO-COMMISSIONING,S20 1HQ
Department of Health,NHS Sheffield CCG,2/29/2020,Hcare Srv Rec Fdtn Trust-Contract Baseline,COMMUNITY SERVICES,SOUTH WEST YORKSHIRE PARTNERSHIP NHS FOUNDATION TRUST,30953557,"-70,530.00",https://nww.einvoice-prod.sbs.nhs.uk:8179/invoicepdf/24c3677b-8d35-5310-901a-d5fffe4ef4ad,WF1 3SP
Department of Health,NHS Sheffield CCG,2/29/2020,Hcare Srv Rec Fdtn Trust-Contract Baseline,COMMUNITY SERVICES,SOUTH WEST YORKSHIRE PARTNERSHIP NHS FOUNDATION TRUST,30953640,"70,530.00",COMMUNITY SERVICES,WF1 3SP
Department of Health,NHS Sheffield CCG,2/29/2020,Clinical&Medical-Independent Sector,MENTAL HEALTH CONTRACTS,SOUTH YORKSHIRE HOUSING ASSOCIATION LTD,30953891,"34,435.00",MENTAL HEALTH CONTRACTS,S1 4HF
Department of Health,NHS Sheffield CCG,2/29/2020,Cont Care- Adult 100% Fully Funded,CHC ADULT FULLY FUNDED,SOUTH YORKSHIRE HOUSING ASSOCIATION LTD,31000527,"46,763.59",CHC ADULT FULLY FUNDED,S1 4HF
Department of Health,NHS Sheffield CCG,2/29/2020,Cont Care- Adult 100% Fully Funded,CHC ADULT FULLY FUNDED,SOUTH YORKSHIRE HOUSING ASSOCIATION LTD,31000530,"25,500.00",CHC ADULT FULLY FUNDED,S1 4HF
Department of Health,NHS Sheffield CCG,2/29/2020,Cont Care-Physical Disab (<65),CHC ADULT FULLY FUNDED,SOUTH YORKSHIRE HOUSING ASSOCIATION LTD,31024141,"49,837.01",CHC ADULT FULLY FUNDED,S35 1RQ
Department of Health,NHS Sheffield CCG,2/29/2020,Clinical&Medical-Voluntary Sector,COLLABORATIVE COMMISSIONING,SOUTH YORKSHIRE HOUSING ASSOCIATION LTD,31274337,"139,149.72",COLLABORATIVE COMMISSIONING,S1 4EB
Department of Health,NHS Sheffield CCG,2/29/2020,Clinical&Medical-Voluntary Sector,COLLABORATIVE COMMISSIONING,SOUTH YORKSHIRE HOUSING ASSOCIATION LTD,31274365,"139,149.72",COLLABORATIVE COMMISSIONING,S1 4EB
Department of Health,NHS Sheffield CCG,2/29/2020,Clinical&Medical-Voluntary Sector,COLLABORATIVE COMMISSIONING,SOUTH YORKSHIRE HOUSING ASSOCIATION LTD,31274369,"77,600.00",COLLABORATIVE COMMISSIONING,S1 4EB
Department of Health,NHS Sheffield CCG,2/29/2020,Clinical&Medical-Voluntary Sector,COLLABORATIVE COMMISSIONING,SOUTH YORKSHIRE HOUSING ASSOCIATION LTD,31274375,"139,149.72",COLLABORATIVE COMMISSIONING,S1 4EB
Department of Health,NHS Sheffield CCG,2/29/2020,C&M-PMS Contract Value,PRC DELEGATED CO-COMMISSIONING,SOUTHEY GREEN MEDICAL CENTRE,30986719,"25,496.98",PRC DELEGATED CO-COMMISSIONING,S5 7QB
Department of Health,NHS Sheffield CCG,2/29/2020,C&M-PMS DES Learn Dsblty Hlth Chk,PRC DELEGATED CO-COMMISSIONING,SOUTHEY GREEN MEDICAL CENTRE,30986719,980.00,PRC DELEGATED CO-COMMISSIONING,S5 7QB
Department of Health,NHS Sheffield CCG,2/29/2020,C&M-PMS Out of Hours Opt Outs,PRC DELEGATED CO-COMMISSIONING,SOUTHEY GREEN MEDICAL CENTRE,30986719,8.62,PRC DELEGATED CO-COMMISSIONING,S5 7QB
Department of Health,NHS Sheffield CCG,2/29/2020,C&M-PMS PCN DES Participation,PRC DELEGATED CO-COMMISSIONING,SOUTHEY GREEN MEDICAL CENTRE,30986719,475.68,PRC DELEGATED CO-COMMISSIONING,S5 7QB
Department of Health,NHS Sheffield CCG,2/29/2020,C&M-PMS Prem Notional Rent,PRC DELEGATED CO-COMMISSIONING,SOUTHEY GREEN MEDICAL CENTRE,30986719,"3,362.50",PRC DELEGATED CO-COMMISSIONING,S5 7QB
Department of Health,NHS Sheffield CCG,2/29/2020,C&M-PMS QOF Aspiration,PRC DELEGATED CO-COMMISSIONING,SOUTHEY GREEN MEDICAL CENTRE,30986719,"2,668.69",PRC DELEGATED CO-COMMISSIONING,S5 7QB
Department of Health,NHS Sheffield CCG,2/29/2020,Clinical&Medical-Independent Sector,ACUTE COMMISSIONING,SPAMEDICA LTD,31216657,"147,030.90",https://nww.einvoice-prod.sbs.nhs.uk:8179/invoicepdf/311f1c8b-066f-5638-a555-6d43809cc0fa,M15 4SQ
Department of Health,NHS Sheffield CCG,2/29/2020,C&M-GMS Cost of Drugs -Prescribing,LOCAL ENHANCED SERVICES,STANNINGTON MEDICAL CENTRE,31201527,"1,087.12",LOCAL ENHANCED SERVICES,S6 6BX
Department of Health,NHS Sheffield CCG,2/29/2020,C&M-GMS DES Minor Surgery,PRC DELEGATED CO-COMMISSIONING,STANNINGTON MEDICAL CENTRE,31201527,240.00,PRC DELEGATED CO-COMMISSIONING,S6 6BX
Department of Health,NHS Sheffield CCG,2/29/2020,C&M-GMS Global Sum,PRC DELEGATED CO-COMMISSIONING,STANNINGTON MEDICAL CENTRE,31201527,"26,155.43",PRC DELEGATED CO-COMMISSIONING,S6 6BX
Department of Health,NHS Sheffield CCG,2/29/2020,C&M-GMS Prem Notional Rent,PRC DELEGATED CO-COMMISSIONING,STANNINGTON MEDICAL CENTRE,31201527,"2,575.00",PRC DELEGATED CO-COMMISSIONING,S6 6BX
Department of Health,NHS Sheffield CCG,2/29/2020,C&M-GMS Prem Water Rates,PRC DELEGATED CO-COMMISSIONING,STANNINGTON MEDICAL CENTRE,31201527,187.33,PRC DELEGATED CO-COMMISSIONING,S6 6BX
Department of Health,NHS Sheffield CCG,2/29/2020,C&M-GMS Prof Fees Prescribing,PRC DELEGATED CO-COMMISSIONING,STANNINGTON MEDICAL CENTRE,31201527,161.38,PRC DELEGATED CO-COMMISSIONING,S6 6BX
Department of Health,NHS Sheffield CCG,2/29/2020,C&M-GMS QOF Aspiration,PRC DELEGATED CO-COMMISSIONING,STANNINGTON MEDICAL CENTRE,31201527,"2,881.70",PRC DELEGATED CO-COMMISSIONING,S6 6BX
Department of Health,NHS Sheffield CCG,2/29/2020,C&M-GMS Cost of Drugs -Prescribing,LOCAL ENHANCED SERVICES,STONECROFT MEDICAL CENTRE,31201525,597.37,LOCAL ENHANCED SERVICES,S12 2LJ
Department of Health,NHS Sheffield CCG,2/29/2020,C&M-GMS DES Learn Dsblty Hlth Chk,PRC DELEGATED CO-COMMISSIONING,STONECROFT MEDICAL CENTRE,31201525,420.00,PRC DELEGATED CO-COMMISSIONING,S12 2LJ
Department of Health,NHS Sheffield CCG,2/29/2020,C&M-GMS DES Minor Surgery,PRC DELEGATED CO-COMMISSIONING,STONECROFT MEDICAL CENTRE,31201525,"1,840.00",PRC DELEGATED CO-COMMISSIONING,S12 2LJ
Department of Health,NHS Sheffield CCG,2/29/2020,C&M-GMS Global Sum,PRC DELEGATED CO-COMMISSIONING,STONECROFT MEDICAL CENTRE,31201525,"32,533.46",PRC DELEGATED CO-COMMISSIONING,S12 2LJ
Department of Health,NHS Sheffield CCG,2/29/2020,C&M-GMS MPIG Correction Factor,PRC DELEGATED CO-COMMISSIONING,STONECROFT MEDICAL CENTRE,31201525,309.13,PRC DELEGATED CO-COMMISSIONING,S12 2LJ
Department of Health,NHS Sheffield CCG,2/29/2020,C&M-GMS PCN DES Participation,PRC DELEGATED CO-COMMISSIONING,STONECROFT MEDICAL CENTRE,31201525,657.55,PRC DELEGATED CO-COMMISSIONING,S12 2LJ
Department of Health,NHS Sheffield CCG,2/29/2020,C&M-GMS Prem Notional Rent,PRC DELEGATED CO-COMMISSIONING,STONECROFT MEDICAL CENTRE,31201525,"2,808.33",PRC DELEGATED CO-COMMISSIONING,S12 2LJ
Department of Health,NHS Sheffield CCG,2/29/2020,C&M-GMS Prof Fees Prescribing,PRC DELEGATED CO-COMMISSIONING,STONECROFT MEDICAL CENTRE,31201525,163.45,PRC DELEGATED CO-COMMISSIONING,S12 2LJ
Department of Health,NHS Sheffield CCG,2/29/2020,C&M-GMS QOF Aspiration,PRC DELEGATED CO-COMMISSIONING,STONECROFT MEDICAL CENTRE,31201525,"4,228.40",PRC DELEGATED CO-COMMISSIONING,S12 2LJ
Department of Health,NHS Sheffield CCG,2/29/2020,Clinical&Medical-Independent Sector,MENTAL HEALTH CONTRACTS,SUSASH GB LTD T/A EAGLE HOUSE,30953829,"30,092.00",MENTAL HEALTH CONTRACTS,S11 8NP
Department of Health,NHS Sheffield CCG,2/29/2020,C&M-GMS Cost of Drugs -Prescribing,LOCAL ENHANCED SERVICES,TOTLEY RISE MEDICAL CENTRE,31201529,586.05,LOCAL ENHANCED SERVICES,S17 4DQ
Department of Health,NHS Sheffield CCG,2/29/2020,C&M-GMS DES Minor Surgery,PRC DELEGATED CO-COMMISSIONING,TOTLEY RISE MEDICAL CENTRE,31201529,365.00,PRC DELEGATED CO-COMMISSIONING,S17 4DQ
Department of Health,NHS Sheffield CCG,2/29/2020,C&M-GMS Global Sum,PRC DELEGATED CO-COMMISSIONING,TOTLEY RISE MEDICAL CENTRE,31201529,"25,904.58",PRC DELEGATED CO-COMMISSIONING,S17 4DQ
Department of Health,NHS Sheffield CCG,2/29/2020,C&M-GMS MPIG Correction Factor,PRC DELEGATED CO-COMMISSIONING,TOTLEY RISE MEDICAL CENTRE,31201529,51.57,PRC DELEGATED CO-COMMISSIONING,S17 4DQ
Department of Health,NHS Sheffield CCG,2/29/2020,C&M-GMS PCN DES Participation,PRC DELEGATED CO-COMMISSIONING,TOTLEY RISE MEDICAL CENTRE,31201529,504.35,PRC DELEGATED CO-COMMISSIONING,S17 4DQ
Department of Health,NHS Sheffield CCG,2/29/2020,C&M-GMS Prem Notional Rent,PRC DELEGATED CO-COMMISSIONING,TOTLEY RISE MEDICAL CENTRE,31201529,"1,604.17",PRC DELEGATED CO-COMMISSIONING,S17 4DQ
Department of Health,NHS Sheffield CCG,2/29/2020,C&M-GMS Prof Fees Prescribing,PRC DELEGATED CO-COMMISSIONING,TOTLEY RISE MEDICAL CENTRE,31201529,128.28,PRC DELEGATED CO-COMMISSIONING,S17 4DQ
Department of Health,NHS Sheffield CCG,2/29/2020,C&M-GMS QOF Aspiration,PRC DELEGATED CO-COMMISSIONING,TOTLEY RISE MEDICAL CENTRE,31201529,"2,304.18",PRC DELEGATED CO-COMMISSIONING,S17 4DQ
Department of Health,NHS Sheffield CCG,2/29/2020,C&M-GMS Cost of Drugs -Prescribing,LOCAL ENHANCED SERVICES,TRAMWAYS MEDICAL CENTRE,31201531,"3,137.74",LOCAL ENHANCED SERVICES,S6 4JQ
Department of Health,NHS Sheffield CCG,2/29/2020,C&M-GMS DES Minor Surgery,PRC DELEGATED CO-COMMISSIONING,TRAMWAYS MEDICAL CENTRE,31201531,"9,165.00",PRC DELEGATED CO-COMMISSIONING,S6 4JQ
Department of Health,NHS Sheffield CCG,2/29/2020,C&M-GMS Global Sum,PRC DELEGATED CO-COMMISSIONING,TRAMWAYS MEDICAL CENTRE,31201531,"61,153.02",PRC DELEGATED CO-COMMISSIONING,S6 4JQ
Department of Health,NHS Sheffield CCG,2/29/2020,C&M-GMS PCN DES Participation,PRC DELEGATED CO-COMMISSIONING,TRAMWAYS MEDICAL CENTRE,31201531,"1,263.94",PRC DELEGATED CO-COMMISSIONING,S6 4JQ
Department of Health,NHS Sheffield CCG,2/29/2020,C&M-GMS Prem Cost Rent,PRC DELEGATED CO-COMMISSIONING,TRAMWAYS MEDICAL CENTRE,31201531,"4,012.75",PRC DELEGATED CO-COMMISSIONING,S6 4JQ
Department of Health,NHS Sheffield CCG,2/29/2020,C&M-GMS Prof Fees Prescribing,PRC DELEGATED CO-COMMISSIONING,TRAMWAYS MEDICAL CENTRE,31201531,424.15,PRC DELEGATED CO-COMMISSIONING,S6 4JQ
Department of Health,NHS Sheffield CCG,2/29/2020,C&M-GMS QOF Aspiration,PRC DELEGATED CO-COMMISSIONING,TRAMWAYS MEDICAL CENTRE,31201531,"5,645.42",PRC DELEGATED CO-COMMISSIONING,S6 4JQ
Department of Health,NHS Sheffield CCG,2/29/2020,Hcare Srv Rec NHS Trust-Contract Baseline,ACUTE COMMISSIONING,UNITED LINCOLNSHIRE HOSPITALS NHS TRUST,30953535,"26,180.60",https://nww.einvoice-prod.sbs.nhs.uk:8179/invoicepdf/adc8cdf2-b0ef-5393-a184-d09765b27e59,LN2 5QY
Department of Health,NHS Sheffield CCG,2/29/2020,C&M-PMS Contract Value,PRC DELEGATED CO-COMMISSIONING,UNIVERSITY HEALTH SERVICE,30986722,"-20,822.55",PRC DELEGATED CO-COMMISSIONING,S3 7QP
Department of Health,NHS Sheffield CCG,2/29/2020,C&M-PMS DES Extended Hours Access,PRC DELEGATED CO-COMMISSIONING,UNIVERSITY HEALTH SERVICE,30986722,"-4,573.92",PRC DELEGATED CO-COMMISSIONING,S3 7QP
Department of Health,NHS Sheffield CCG,2/29/2020,C&M-PMS GP Statutory Levy,PRC DELEGATED CO-COMMISSIONING,UNIVERSITY HEALTH SERVICE,30986722,"-1,224.13",PRC DELEGATED CO-COMMISSIONING,S3 7QP
Department of Health,NHS Sheffield CCG,2/29/2020,C&M-PMS Out of Hours Opt Outs,PRC DELEGATED CO-COMMISSIONING,UNIVERSITY HEALTH SERVICE,30986722,"-10,308.61",PRC DELEGATED CO-COMMISSIONING,S3 7QP
Department of Health,NHS Sheffield CCG,2/29/2020,C&M-PMS PCN DES Clinical Director,PRC DELEGATED CO-COMMISSIONING,UNIVERSITY HEALTH SERVICE,30986722,"-2,139.21",PRC DELEGATED CO-COMMISSIONING,S3 7QP
Department of Health,NHS Sheffield CCG,2/29/2020,C&M-PMS PCN DES PCN support,LOCAL ENHANCED SERVICES,UNIVERSITY HEALTH SERVICE,30986722,"-4,682.13",LOCAL ENHANCED SERVICES,S3 7QP
Department of Health,NHS Sheffield CCG,2/29/2020,C&M-PMS Contract Value,PRC DELEGATED CO-COMMISSIONING,UNIVERSITY HEALTH SERVICE,30986723,"220,244.78",PRC DELEGATED CO-COMMISSIONING,S3 7QP
Department of Health,NHS Sheffield CCG,2/29/2020,C&M-PMS DES Extended Hours Access,PRC DELEGATED CO-COMMISSIONING,UNIVERSITY HEALTH SERVICE,30986723,"4,573.92",PRC DELEGATED CO-COMMISSIONING,S3 7QP
Department of Health,NHS Sheffield CCG,2/29/2020,C&M-PMS Out of Hours Opt Outs,PRC DELEGATED CO-COMMISSIONING,UNIVERSITY HEALTH SERVICE,30986723,"1,008.34",PRC DELEGATED CO-COMMISSIONING,S3 7QP
Department of Health,NHS Sheffield CCG,2/29/2020,C&M-PMS PCN DES Clinical Director,PRC DELEGATED CO-COMMISSIONING,UNIVERSITY HEALTH SERVICE,30986723,"2,139.21",PRC DELEGATED CO-COMMISSIONING,S3 7QP
Department of Health,NHS Sheffield CCG,2/29/2020,C&M-PMS PCN DES PCN support,LOCAL ENHANCED SERVICES,UNIVERSITY HEALTH SERVICE,30986723,"4,682.13",LOCAL ENHANCED SERVICES,S3 7QP
Department of Health,NHS Sheffield CCG,2/29/2020,C&M-PMS PCN DES Participation,PRC DELEGATED CO-COMMISSIONING,UNIVERSITY HEALTH SERVICE,30986723,"3,535.52",PRC DELEGATED CO-COMMISSIONING,S3 7QP
Department of Health,NHS Sheffield CCG,2/29/2020,C&M-PMS Prem Notional Rent,PRC DELEGATED CO-COMMISSIONING,UNIVERSITY HEALTH SERVICE,30986723,"15,833.33",PRC DELEGATED CO-COMMISSIONING,S3 7QP
Department of Health,NHS Sheffield CCG,2/29/2020,C&M-PMS Prem Water Rates,PRC DELEGATED CO-COMMISSIONING,UNIVERSITY HEALTH SERVICE,30986723,"1,001.11",PRC DELEGATED CO-COMMISSIONING,S3 7QP
Department of Health,NHS Sheffield CCG,2/29/2020,C&M-PMS QOF Aspiration,PRC DELEGATED CO-COMMISSIONING,UNIVERSITY HEALTH SERVICE,30986723,"4,031.41",PRC DELEGATED CO-COMMISSIONING,S3 7QP
Department of Health,NHS Sheffield CCG,2/29/2020,C&M-GMS Cost of Drugs -Prescribing,LOCAL ENHANCED SERVICES,UPPERTHORPE MEDICAL CENTRE,31201534,"4,089.36",LOCAL ENHANCED SERVICES,S6 3FT
Department of Health,NHS Sheffield CCG,2/29/2020,C&M-GMS DES Learn Dsblty Hlth Chk,PRC DELEGATED CO-COMMISSIONING,UPPERTHORPE MEDICAL CENTRE,31201534,280.00,PRC DELEGATED CO-COMMISSIONING,S6 3FT
Department of Health,NHS Sheffield CCG,2/29/2020,C&M-GMS DES Minor Surgery,PRC DELEGATED CO-COMMISSIONING,UPPERTHORPE MEDICAL CENTRE,31201534,"1,190.00",PRC DELEGATED CO-COMMISSIONING,S6 3FT
Department of Health,NHS Sheffield CCG,2/29/2020,C&M-GMS Global Sum,PRC DELEGATED CO-COMMISSIONING,UPPERTHORPE MEDICAL CENTRE,31201534,"84,954.72",PRC DELEGATED CO-COMMISSIONING,S6 3FT
Department of Health,NHS Sheffield CCG,2/29/2020,C&M-GMS MPIG Correction Factor,PRC DELEGATED CO-COMMISSIONING,UPPERTHORPE MEDICAL CENTRE,31201534,662.87,PRC DELEGATED CO-COMMISSIONING,S6 3FT
Department of Health,NHS Sheffield CCG,2/29/2020,C&M-GMS PCN DES Participation,PRC DELEGATED CO-COMMISSIONING,UPPERTHORPE MEDICAL CENTRE,31201534,"1,681.95",PRC DELEGATED CO-COMMISSIONING,S6 3FT
Department of Health,NHS Sheffield CCG,2/29/2020,C&M-GMS PCO Locum Sickness,PRC DELEGATED CO-COMMISSIONING,UPPERTHORPE MEDICAL CENTRE,31201534,"15,370.29",PRC DELEGATED CO-COMMISSIONING,S6 3FT
Department of Health,NHS Sheffield CCG,2/29/2020,C&M-GMS Prem Notional Rent,PRC DELEGATED CO-COMMISSIONING,UPPERTHORPE MEDICAL CENTRE,31201534,"2,547.83",PRC DELEGATED CO-COMMISSIONING,S6 3FT
Department of Health,NHS Sheffield CCG,2/29/2020,C&M-GMS Prof Fees Prescribing,PRC DELEGATED CO-COMMISSIONING,UPPERTHORPE MEDICAL CENTRE,31201534,610.37,PRC DELEGATED CO-COMMISSIONING,S6 3FT
Department of Health,NHS Sheffield CCG,2/29/2020,C&M-GMS QOF Aspiration,PRC DELEGATED CO-COMMISSIONING,UPPERTHORPE MEDICAL CENTRE,31201534,"9,072.83",PRC DELEGATED CO-COMMISSIONING,S6 3FT
Department of Health,NHS Sheffield CCG,2/29/2020,C&M-PMS Contract Value,PRC DELEGATED CO-COMMISSIONING,UPWELL STREET SURGERY,30986724,"-2,391.81",PRC DELEGATED CO-COMMISSIONING,S4 8AN
Department of Health,NHS Sheffield CCG,2/29/2020,C&M-PMS GP Statutory Levy,PRC DELEGATED CO-COMMISSIONING,UPWELL STREET SURGERY,30986724,-167.58,PRC DELEGATED CO-COMMISSIONING,S4 8AN
Department of Health,NHS Sheffield CCG,2/29/2020,C&M-PMS Out of Hours Opt Outs,PRC DELEGATED CO-COMMISSIONING,UPWELL STREET SURGERY,30986724,"-1,754.17",PRC DELEGATED CO-COMMISSIONING,S4 8AN
Department of Health,NHS Sheffield CCG,2/29/2020,C&M-PMS Contract Value,PRC DELEGATED CO-COMMISSIONING,UPWELL STREET SURGERY,30986725,"37,734.18",PRC DELEGATED CO-COMMISSIONING,S4 8AN
Department of Health,NHS Sheffield CCG,2/29/2020,C&M-PMS Out of Hours Opt Outs,PRC DELEGATED CO-COMMISSIONING,UPWELL STREET SURGERY,30986725,111.19,PRC DELEGATED CO-COMMISSIONING,S4 8AN
Department of Health,NHS Sheffield CCG,2/29/2020,C&M-PMS PCN DES Participation,PRC DELEGATED CO-COMMISSIONING,UPWELL STREET SURGERY,30986725,713.41,PRC DELEGATED CO-COMMISSIONING,S4 8AN
Department of Health,NHS Sheffield CCG,2/29/2020,C&M-PMS PCO Locum Sickness,PRC DELEGATED CO-COMMISSIONING,UPWELL STREET SURGERY,30986725,"4,271.36",PRC DELEGATED CO-COMMISSIONING,S4 8AN
Department of Health,NHS Sheffield CCG,2/29/2020,C&M-PMS Prem Notional Rent,PRC DELEGATED CO-COMMISSIONING,UPWELL STREET SURGERY,30986725,"8,137.50",PRC DELEGATED CO-COMMISSIONING,S4 8AN
Department of Health,NHS Sheffield CCG,2/29/2020,C&M-PMS Prem Rates,PRC DELEGATED CO-COMMISSIONING,UPWELL STREET SURGERY,30986725,"1,340.00",PRC DELEGATED CO-COMMISSIONING,S4 8AN
Department of Health,NHS Sheffield CCG,2/29/2020,C&M-PMS QOF Aspiration,PRC DELEGATED CO-COMMISSIONING,UPWELL STREET SURGERY,30986725,"4,056.38",PRC DELEGATED CO-COMMISSIONING,S4 8AN
Department of Health,NHS Sheffield CCG,2/29/2020,C&M-PMS Contract Value,PRC DELEGATED CO-COMMISSIONING,VALLEY MEDICAL CENTRE,30986727,"79,516.07",PRC DELEGATED CO-COMMISSIONING,S36 1BX
Department of Health,NHS Sheffield CCG,2/29/2020,C&M-PMS DES Extended Hours Access,PRC DELEGATED CO-COMMISSIONING,VALLEY MEDICAL CENTRE,30986727,"2,533.07",PRC DELEGATED CO-COMMISSIONING,S36 1BX
Department of Health,NHS Sheffield CCG,2/29/2020,C&M-PMS Out of Hours Opt Outs,PRC DELEGATED CO-COMMISSIONING,VALLEY MEDICAL CENTRE,30986727,49.64,PRC DELEGATED CO-COMMISSIONING,S36 1BX
Department of Health,NHS Sheffield CCG,2/29/2020,C&M-PMS PCN DES Clinical Director,PRC DELEGATED CO-COMMISSIONING,VALLEY MEDICAL CENTRE,30986727,"1,184.71",PRC DELEGATED CO-COMMISSIONING,S36 1BX
Department of Health,NHS Sheffield CCG,2/29/2020,C&M-PMS PCN DES PCN support,LOCAL ENHANCED SERVICES,VALLEY MEDICAL CENTRE,30986727,"2,593.00",LOCAL ENHANCED SERVICES,S36 1BX
Department of Health,NHS Sheffield CCG,2/29/2020,C&M-PMS PCN DES Participation,PRC DELEGATED CO-COMMISSIONING,VALLEY MEDICAL CENTRE,30986727,"1,492.89",PRC DELEGATED CO-COMMISSIONING,S36 1BX
Department of Health,NHS Sheffield CCG,2/29/2020,C&M-PMS Prem Water Rates,PRC DELEGATED CO-COMMISSIONING,VALLEY MEDICAL CENTRE,30986727,313.48,PRC DELEGATED CO-COMMISSIONING,S36 1BX
Department of Health,NHS Sheffield CCG,2/29/2020,C&M-PMS QOF Aspiration,PRC DELEGATED CO-COMMISSIONING,VALLEY MEDICAL CENTRE,30986727,"8,453.91",PRC DELEGATED CO-COMMISSIONING,S36 1BX
Department of Health,NHS Sheffield CCG,2/29/2020,Cont Care-Physical Disab (<65),CHC ADULT FULLY FUNDED,VALORUM CARE LTD,31024147,"52,026.37",CHC ADULT FULLY FUNDED,LS19 7RW
Department of Health,NHS Sheffield CCG,2/29/2020,C&M-GMS GP Statutory Levy,PRC DELEGATED CO-COMMISSIONING,WALKLEY HOUSE MEDICAL CENTRE,31201539,-424.66,PRC DELEGATED CO-COMMISSIONING,S6 3TN
Department of Health,NHS Sheffield CCG,2/29/2020,C&M-GMS Cost of Drugs -Prescribing,LOCAL ENHANCED SERVICES,WALKLEY HOUSE MEDICAL CENTRE,31224399,"2,903.66",LOCAL ENHANCED SERVICES,S6 3TN
Department of Health,NHS Sheffield CCG,2/29/2020,C&M-GMS DES Minor Surgery,PRC DELEGATED CO-COMMISSIONING,WALKLEY HOUSE MEDICAL CENTRE,31224399,295.00,PRC DELEGATED CO-COMMISSIONING,S6 3TN
Department of Health,NHS Sheffield CCG,2/29/2020,C&M-GMS Global Sum,PRC DELEGATED CO-COMMISSIONING,WALKLEY HOUSE MEDICAL CENTRE,31224399,"85,597.10",PRC DELEGATED CO-COMMISSIONING,S6 3TN
Department of Health,NHS Sheffield CCG,2/29/2020,C&M-GMS PCN DES Participation,PRC DELEGATED CO-COMMISSIONING,WALKLEY HOUSE MEDICAL CENTRE,31224399,"1,749.49",PRC DELEGATED CO-COMMISSIONING,S6 3TN
Department of Health,NHS Sheffield CCG,2/29/2020,C&M-GMS PCO Locum Sickness,PRC DELEGATED CO-COMMISSIONING,WALKLEY HOUSE MEDICAL CENTRE,31224399,"1,839.81",PRC DELEGATED CO-COMMISSIONING,S6 3TN
Department of Health,NHS Sheffield CCG,2/29/2020,C&M-GMS Prem Notional Rent,PRC DELEGATED CO-COMMISSIONING,WALKLEY HOUSE MEDICAL CENTRE,31224399,"5,635.50",PRC DELEGATED CO-COMMISSIONING,S6 3TN
Department of Health,NHS Sheffield CCG,2/29/2020,C&M-GMS Prof Fees Prescribing,PRC DELEGATED CO-COMMISSIONING,WALKLEY HOUSE MEDICAL CENTRE,31224399,477.95,PRC DELEGATED CO-COMMISSIONING,S6 3TN
Department of Health,NHS Sheffield CCG,2/29/2020,C&M-GMS QOF Aspiration,PRC DELEGATED CO-COMMISSIONING,WALKLEY HOUSE MEDICAL CENTRE,31224399,"8,602.90",PRC DELEGATED CO-COMMISSIONING,S6 3TN
Department of Health,NHS Sheffield CCG,2/29/2020,C&M-GMS Cost of Drugs -Prescribing,LOCAL ENHANCED SERVICES,WHITE HOUSE SURGERY SHEFFIELD,31201538,"3,029.43",LOCAL ENHANCED SERVICES,S2 1SL
Department of Health,NHS Sheffield CCG,2/29/2020,C&M-GMS DES Learn Dsblty Hlth Chk,PRC DELEGATED CO-COMMISSIONING,WHITE HOUSE SURGERY SHEFFIELD,31201538,560.00,PRC DELEGATED CO-COMMISSIONING,S2 1SL
Department of Health,NHS Sheffield CCG,2/29/2020,C&M-GMS DES Minor Surgery,PRC DELEGATED CO-COMMISSIONING,WHITE HOUSE SURGERY SHEFFIELD,31201538,500.00,PRC DELEGATED CO-COMMISSIONING,S2 1SL
Department of Health,NHS Sheffield CCG,2/29/2020,C&M-GMS Global Sum,PRC DELEGATED CO-COMMISSIONING,WHITE HOUSE SURGERY SHEFFIELD,31201538,"51,680.56",PRC DELEGATED CO-COMMISSIONING,S2 1SL
Department of Health,NHS Sheffield CCG,2/29/2020,C&M-GMS MPIG Correction Factor,PRC DELEGATED CO-COMMISSIONING,WHITE HOUSE SURGERY SHEFFIELD,31201538,695.65,PRC DELEGATED CO-COMMISSIONING,S2 1SL
Department of Health,NHS Sheffield CCG,2/29/2020,C&M-GMS PCN DES Participation,PRC DELEGATED CO-COMMISSIONING,WHITE HOUSE SURGERY SHEFFIELD,31201538,"1,038.45",PRC DELEGATED CO-COMMISSIONING,S2 1SL
Department of Health,NHS Sheffield CCG,2/29/2020,C&M-GMS Prem Notional Rent,PRC DELEGATED CO-COMMISSIONING,WHITE HOUSE SURGERY SHEFFIELD,31201538,"9,412.50",PRC DELEGATED CO-COMMISSIONING,S2 1SL
Department of Health,NHS Sheffield CCG,2/29/2020,C&M-GMS Prof Fees Prescribing,PRC DELEGATED CO-COMMISSIONING,WHITE HOUSE SURGERY SHEFFIELD,31201538,641.40,PRC DELEGATED CO-COMMISSIONING,S2 1SL
Department of Health,NHS Sheffield CCG,2/29/2020,C&M-GMS QOF Aspiration,PRC DELEGATED CO-COMMISSIONING,WHITE HOUSE SURGERY SHEFFIELD,31201538,"6,233.52",PRC DELEGATED CO-COMMISSIONING,S2 1SL
Department of Health,NHS Sheffield CCG,2/29/2020,Cont Care-Physical Disab (<65),CHC ADULT FULLY FUNDED,WILLOWBECK HEALTH CARE LTD,31024152,"159,144.74",CHC ADULT FULLY FUNDED,S4 8AR
Department of Health,NHS Sheffield CCG,2/29/2020,C&M-PMS Contract Value,PRC DELEGATED CO-COMMISSIONING,WINCOBANK MEDICAL CENTRE,30986731,"63,053.05",PRC DELEGATED CO-COMMISSIONING,S9 1DJ
Department of Health,NHS Sheffield CCG,2/29/2020,C&M-PMS Out of Hours Opt Outs,PRC DELEGATED CO-COMMISSIONING,WINCOBANK MEDICAL CENTRE,30986731,27.09,PRC DELEGATED CO-COMMISSIONING,S9 1DJ
Department of Health,NHS Sheffield CCG,2/29/2020,C&M-PMS PCN DES Participation,PRC DELEGATED CO-COMMISSIONING,WINCOBANK MEDICAL CENTRE,30986731,"1,179.69",PRC DELEGATED CO-COMMISSIONING,S9 1DJ
Department of Health,NHS Sheffield CCG,2/29/2020,C&M-PMS Prem Healthcentre Rent,PRC DELEGATED CO-COMMISSIONING,WINCOBANK MEDICAL CENTRE,30986731,"45,121.79",PRC DELEGATED CO-COMMISSIONING,S9 1DJ
Department of Health,NHS Sheffield CCG,2/29/2020,C&M-PMS QOF Aspiration,PRC DELEGATED CO-COMMISSIONING,WINCOBANK MEDICAL CENTRE,30986731,"6,283.36",PRC DELEGATED CO-COMMISSIONING,S9 1DJ
Department of Health,NHS Sheffield CCG,2/29/2020,C&M-PMS Contract Value,PRC DELEGATED CO-COMMISSIONING,WOODHOUSE HEALTH CENTRE,30986729,"101,457.37",PRC DELEGATED CO-COMMISSIONING,S13 7LY
Department of Health,NHS Sheffield CCG,2/29/2020,C&M-PMS DES Learn Dsblty Hlth Chk,PRC DELEGATED CO-COMMISSIONING,WOODHOUSE HEALTH CENTRE,30986729,560.00,PRC DELEGATED CO-COMMISSIONING,S13 7LY
Department of Health,NHS Sheffield CCG,2/29/2020,C&M-PMS Out of Hours Opt Outs,PRC DELEGATED CO-COMMISSIONING,WOODHOUSE HEALTH CENTRE,30986729,49.40,PRC DELEGATED CO-COMMISSIONING,S13 7LY
Department of Health,NHS Sheffield CCG,2/29/2020,C&M-PMS PCN DES Participation,PRC DELEGATED CO-COMMISSIONING,WOODHOUSE HEALTH CENTRE,30986729,"1,906.58",PRC DELEGATED CO-COMMISSIONING,S13 7LY
Department of Health,NHS Sheffield CCG,2/29/2020,C&M-PMS Prem Notional Rent,PRC DELEGATED CO-COMMISSIONING,WOODHOUSE HEALTH CENTRE,30986729,"6,338.58",PRC DELEGATED CO-COMMISSIONING,S13 7LY
Department of Health,NHS Sheffield CCG,2/29/2020,C&M-PMS QOF Aspiration,PRC DELEGATED CO-COMMISSIONING,WOODHOUSE HEALTH CENTRE,30986729,"13,912.30",PRC DELEGATED CO-COMMISSIONING,S13 7LY
Department of Health,NHS Sheffield CCG,2/29/2020,C&M-PMS Contract Value,PRC DELEGATED CO-COMMISSIONING,WOODSEATS MEDICAL CENTRE,30995676,"78,771.55",PRC DELEGATED CO-COMMISSIONING,S8 0SH
Department of Health,NHS Sheffield CCG,2/29/2020,C&M-PMS DES Learn Dsblty Hlth Chk,PRC DELEGATED CO-COMMISSIONING,WOODSEATS MEDICAL CENTRE,30995676,"2,240.00",PRC DELEGATED CO-COMMISSIONING,S8 0SH
Department of Health,NHS Sheffield CCG,2/29/2020,C&M-PMS Out of Hours Opt Outs,PRC DELEGATED CO-COMMISSIONING,WOODSEATS MEDICAL CENTRE,30995676,10.16,PRC DELEGATED CO-COMMISSIONING,S8 0SH
Department of Health,NHS Sheffield CCG,2/29/2020,C&M-PMS PCN DES Participation,PRC DELEGATED CO-COMMISSIONING,WOODSEATS MEDICAL CENTRE,30995676,"1,439.13",PRC DELEGATED CO-COMMISSIONING,S8 0SH
Department of Health,NHS Sheffield CCG,2/29/2020,C&M-PMS Prem Notional Rent,PRC DELEGATED CO-COMMISSIONING,WOODSEATS MEDICAL CENTRE,30995676,"11,666.67",PRC DELEGATED CO-COMMISSIONING,S8 0SH
Department of Health,NHS Sheffield CCG,2/29/2020,C&M-PMS QOF Aspiration,PRC DELEGATED CO-COMMISSIONING,WOODSEATS MEDICAL CENTRE,30995676,"8,242.64",PRC DELEGATED CO-COMMISSIONING,S8 0SH
Department of Health,NHS Sheffield CCG,2/29/2020,Hcare Srv Rec NHS Trust-Contract Baseline,AMBULANCE SERVICES,YORKSHIRE AMBULANCE SERVICE NHS TRUST,30899496,"1,674,240.00",https://nww.einvoice-prod.sbs.nhs.uk:8179/invoicepdf/247175c8-daf3-5bd3-a626-34736bb8a2c0,WF2 0XQ
Department of Health,NHS Sheffield CCG,2/29/2020,Hcare Srv Rec NHS Trust-Contract Baseline,PATIENT TRANSPORT,YORKSHIRE AMBULANCE SERVICE NHS TRUST,30899500,"267,243.94",https://nww.einvoice-prod.sbs.nhs.uk:8179/invoicepdf/017c72b6-4411-5da8-b6df-ed5e4b6907c3,WF2 0XQ
Department of Health,NHS Sheffield CCG,2/29/2020,Hcare Srv Rec NHS Trust-Contract Baseline,NHS 111,YORKSHIRE AMBULANCE SERVICE NHS TRUST,30899503,"133,605.27",https://nww.einvoice-prod.sbs.nhs.uk:8179/invoicepdf/61a932a6-0f98-5f58-8d90-2bddfe352067,WF2 0XQ
Department of Health,NHS Sheffield CCG,2/29/2020,Hcare Srv Rec NHS Trust-Contract Baseline,AMBULANCE SERVICES,YORKSHIRE AMBULANCE SERVICE NHS TRUST,30899504,"127,348.75",https://nww.einvoice-prod.sbs.nhs.uk:8179/invoicepdf/35cae364-2cc7-52ba-89a8-54f26312b53d,WF2 0XQ
